Body Name,Body,Service Division Label,Service Division Code,Organisational Unit,Expenditure Category,Expenditure Code,CIPFA detailed expediture type,CIPFA detailed expediture code,Narrative,Date,Transaction number,Net Amount,Capital and Revenue,Supplier Name,Supplier ID
Chorley Borough Council,http://statistics.data.gov.uk/id/local-authority/30UE,Parking Services,1066,Streetscene & Leisure Contracts,Signs:Provision & Maintenance,20065,Grounds Maintenance Costs,5013,Line marking at Fleets Street long stay car park. Work as per Quotation EN 26548 option 2.,18/12/2013,92520,776.94,Revenue,A1 Streamline Road Markings LTD,21544
Chorley Borough Council,http://statistics.data.gov.uk/id/local-authority/30UE,Capital,Capital,Housing,Grants,3002,Capital Expenditure,Capital,Capital Works - Disabled Facility Grant,06/12/2013,92403,"2,877.00",Capital,Accessible Bathroom Solutions Ltd,58149
Chorley Borough Council,http://statistics.data.gov.uk/id/local-authority/30UE,Central Support Services,1009,Streetscene & Leisure Contracts,Special Repairs,20007,Repairs Maintenance & Alts,5005,Supply and insatll PVC door,20/12/2013,92756,783.33,Revenue,Ackhurst Glass Ltd,22069
Chorley Borough Council,http://statistics.data.gov.uk/id/local-authority/30UE,Economic Development,1096,Economic Development,Grants To Other Organisations,40127,Grants and Subscriptions,5031,For audio visual services at business event 12th November 2013,05/12/2013,92207,"2,093.50",Revenue,Active Audio Visual,21379
Chorley Borough Council,http://statistics.data.gov.uk/id/local-authority/30UE,Democratic Represent and  Mgnt,1007,Streetscene & Leisure Contracts,External Contractor - Trust or Charity,50008,Private Contractors,5042,Dec-13,11/12/2013,92450,"33,416.25",Revenue,Active Nation UK Ltd,17144
Chorley Borough Council,http://statistics.data.gov.uk/id/local-authority/30UE,Democratic Represent and  Mgnt,1007,Streetscene & Leisure Contracts,Grounds Maintenance Contractor,20043,Grounds Maintenance Costs,5013,Site visit and writing of a detailed tree survey/five year action plan for Withnell Local Nature Reserve.,05/12/2013,92308,300.00,Revenue,Alan Walker,20999
Chorley Borough Council,http://statistics.data.gov.uk/id/local-authority/30UE,Unapportionable Central OHeads,1009,"Customer, ICT & Transactional",Bank Charges,40151,Miscellaneous Expenses,5034,CHBC,20/12/2013,92474,"1,844.76",Revenue,Allpay Net Ltd,17242
Chorley Borough Council,http://statistics.data.gov.uk/id/local-authority/30UE,Central Support Services,1009,"Customer, ICT & Transactional",Bank Charges,40151,Miscellaneous Expenses,5034,CHBC,20/12/2013,92474,43.01,Revenue,Allpay Net Ltd,17242
Chorley Borough Council,http://statistics.data.gov.uk/id/local-authority/30UE,Central Support Services,1009,Shared Service Arrangement,Car Leasing Payment,14100,Direct Employee Expenses,5001,Vehicle Leasing,11/12/2013,92573,45.15,Revenue,Alphabet (Uk) Fleet Management Ltd,16651
Chorley Borough Council,http://statistics.data.gov.uk/id/local-authority/30UE,Central Support Services,1009,Shared Service Arrangement,Car Leasing Payment,14100,Direct Employee Expenses,5001,Vehicle Leasing,11/12/2013,92573,4.08,Revenue,Alphabet (Uk) Fleet Management Ltd,16651
Chorley Borough Council,http://statistics.data.gov.uk/id/local-authority/30UE,Corporate Management,1008,Shared Service Arrangement,Car Leasing Payment,14100,Direct Employee Expenses,5001,Vehicle Leasing,11/12/2013,92573,239.70,Revenue,Alphabet (Uk) Fleet Management Ltd,16651
Chorley Borough Council,http://statistics.data.gov.uk/id/local-authority/30UE,Corporate Management,1008,Shared Service Arrangement,Car Leasing Payment,14100,Direct Employee Expenses,5001,Vehicle Leasing,11/12/2013,92573,20.88,Revenue,Alphabet (Uk) Fleet Management Ltd,16651
Chorley Borough Council,http://statistics.data.gov.uk/id/local-authority/30UE,Development Control,1091,Shared Service Arrangement,Car Leasing Payment,14100,Direct Employee Expenses,5001,Vehicle Leasing,11/12/2013,92573,71.85,Revenue,Alphabet (Uk) Fleet Management Ltd,16651
Chorley Borough Council,http://statistics.data.gov.uk/id/local-authority/30UE,Development Control,1091,Shared Service Arrangement,Car Leasing Payment,14100,Direct Employee Expenses,5001,Vehicle Leasing,11/12/2013,92573,6.03,Revenue,Alphabet (Uk) Fleet Management Ltd,16651
Chorley Borough Council,http://statistics.data.gov.uk/id/local-authority/30UE,Waste Collection,1050,Shared Service Arrangement,Car Leasing Payment,14100,Direct Employee Expenses,5001,Vehicle Leasing,11/12/2013,92573,351.30,Revenue,Alphabet (Uk) Fleet Management Ltd,16651
Chorley Borough Council,http://statistics.data.gov.uk/id/local-authority/30UE,Corporate Management,1008,Shared Service Arrangement,Car Leasing Payment,14100,Direct Employee Expenses,5001,Vehicle Leasing,11/12/2013,92573,29.46,Revenue,Alphabet (Uk) Fleet Management Ltd,16651
Chorley Borough Council,http://statistics.data.gov.uk/id/local-authority/30UE,Economic Development,1096,Economic Development,Cleaning Materials,40019,"Equipment, Furniture & Materia",5023,Please provide items as per list attached to email,18/12/2013,92682,392.33,Revenue,Amtoll Ltd,21738
Chorley Borough Council,http://statistics.data.gov.uk/id/local-authority/30UE,Unapportionable Central OHeads,1009,"Customer, ICT & Transactional",Computer - Support Services,40111,Communication and Computing,5028,"Citrix support contract - year 4 of 5. Contract ref ANS/4483/529, covering the period 01/11/13 to 31/10/14",05/12/2013,92034,"3,000.00",Revenue,ANS Group,22502
Chorley Borough Council,http://statistics.data.gov.uk/id/local-authority/30UE,Democratic Represent and  Mgnt,1007,Streetscene & Leisure Contracts,Grounds Maintenance Contractor,20043,Grounds Maintenance Costs,5013,Carryout repairs and refit height barrier at Yarrow Valley Park car park entrance as requested,05/12/2013,92368,285.00,Revenue,Ark Welding Ltd,18154
Chorley Borough Council,http://statistics.data.gov.uk/id/local-authority/30UE,Open Spaces,1038,Streetscene & Leisure Contracts,Playground Equipment,40008,"Equipment, Furniture & Materia",5023,Repairs to roundabout at Coronation recreation ground as instructed,05/12/2013,92370,528.00,Revenue,Ark Welding Ltd,18154
Chorley Borough Council,http://statistics.data.gov.uk/id/local-authority/30UE,Democratic Represent and  Mgnt,1007,Health Environment & Neighbourhoods,Grants To Other Organisations,40127,Grants and Subscriptions,5031,S106 grant payment,18/12/2013,92598,"1,920.00",Revenue,Astley & Buckshaw Junior FC,47070
Chorley Borough Council,http://statistics.data.gov.uk/id/local-authority/30UE,Regulatory Services,1048,Health Environment & Neighbourhoods,Taxi Testing & Vehicle Safety Report,40234,Services,5027,MOT,13/12/2013,92475,822.75,Revenue,Autocentre LTD,21651
Chorley Borough Council,http://statistics.data.gov.uk/id/local-authority/30UE,Corporate Management,1008,Health Environment & Neighbourhoods,Taxi Testing & Vehicle Safety Report,40234,Services,5027,MOT,13/12/2013,92475,124.95,Revenue,Autocentre LTD,21651
Chorley Borough Council,http://statistics.data.gov.uk/id/local-authority/30UE,Local Tax Collection,1010,Shared Service Arrangement,Legal Fees,40171,Miscellaneous Expenses,5034,19/9/2013 - HM Courts - Services - 20 Liability orders,05/12/2013,92400,60.00,Revenue,Barclaycard Commercial,59848
Chorley Borough Council,http://statistics.data.gov.uk/id/local-authority/30UE,Central Support Services,1009,Shared Service Arrangement,Computer Equipment-Purchase,40098,Communication and Computing,5028,13/9/2013 - Apple Online Store - Lightning to USB Camera Adapter,05/12/2013,92400,25.00,Revenue,Barclaycard Commercial,59848
Chorley Borough Council,http://statistics.data.gov.uk/id/local-authority/30UE,Unapportionable Central OHeads,1009,Shared Service Arrangement,Computer Equipment-Purchase,40098,Communication and Computing,5028,13/9/2013 - Apple Online Store - Lightning Digital AV Adapter,05/12/2013,92400,40.00,Revenue,Barclaycard Commercial,59848
Chorley Borough Council,http://statistics.data.gov.uk/id/local-authority/30UE,Unapportionable Central OHeads,1009,Shared Service Arrangement,Computer Equipment-Purchase,40098,Communication and Computing,5028,13/9/2013 - Apple Online Store - Lightning to VGA Adapter,05/12/2013,92400,40.00,Revenue,Barclaycard Commercial,59848
Chorley Borough Council,http://statistics.data.gov.uk/id/local-authority/30UE,Central Support Services,1009,Shared Service Arrangement,Miscellaneous Expenses,40200,Miscellaneous Expenses,5034,18/9/2013 - Northern Rail Ltd ,05/12/2013,92400,8.40,Revenue,Barclaycard Commercial,59848
Chorley Borough Council,http://statistics.data.gov.uk/id/local-authority/30UE,Local Tax Collection,1010,Shared Service Arrangement,Legal Fees,40171,Miscellaneous Expenses,5034,20/9/2013 - HM Courts - Services - 304 Liability orders,05/12/2013,92400,912.00,Revenue,Barclaycard Commercial,59848
Chorley Borough Council,http://statistics.data.gov.uk/id/local-authority/30UE,Unapportionable Central OHeads,1009,Shared Service Arrangement,Publicity - Advertising,40157,Miscellaneous Expenses,5034,28/8/2013 - Facebook - Promoting Chorley Live ,05/12/2013,92400,7.22,Revenue,Barclaycard Commercial,59848
Chorley Borough Council,http://statistics.data.gov.uk/id/local-authority/30UE,Central Support Services,1009,Shared Service Arrangement,Computer Software-Maintenance,40107,Communication and Computing,5028,30/8/2013 - Thawte - Web Server Certificate ,05/12/2013,92400,329.31,Revenue,Barclaycard Commercial,59848
Chorley Borough Council,http://statistics.data.gov.uk/id/local-authority/30UE,Central Support Services,1009,Shared Service Arrangement,Publicity - Advertising,40157,Miscellaneous Expenses,5034,10/9/2013 - Facebook - Promoting Chorley Live ,05/12/2013,92400,10.00,Revenue,Barclaycard Commercial,59848
Chorley Borough Council,http://statistics.data.gov.uk/id/local-authority/30UE,Unapportionable Central OHeads,1009,Shared Service Arrangement,Legal Fees,40171,Miscellaneous Expenses,5034,11/9/2013 - HM Courts - Services - Court Fee ,05/12/2013,92400,200.00,Revenue,Barclaycard Commercial,59848
Chorley Borough Council,http://statistics.data.gov.uk/id/local-authority/30UE,Central Support Services,1009,Shared Service Arrangement,Other Fees,40212,Miscellaneous Expenses,5034,16/9/2013 - BT Disclsure Scotland - Basic Disclosure Application ,05/12/2013,92400,25.00,Revenue,Barclaycard Commercial,59848
Chorley Borough Council,http://statistics.data.gov.uk/id/local-authority/30UE,Democratic Represent and  Mgnt,1007,Shared Service Arrangement,Conferences - Members,40121,Expenses,5030,16/9/2013 - Paypal Letsdobusiness - Attendance at Lets Do Business Event ,05/12/2013,92400,12.50,Revenue,Barclaycard Commercial,59848
Chorley Borough Council,http://statistics.data.gov.uk/id/local-authority/30UE,Central Support Services,1009,Shared Service Arrangement,Publicity - Advertising,40157,Miscellaneous Expenses,5034,16/9/2013 - Facebook - Promoting Chorley Live ,05/12/2013,92400,21.00,Revenue,Barclaycard Commercial,59848
Chorley Borough Council,http://statistics.data.gov.uk/id/local-authority/30UE,Unapportionable Central OHeads,1009,Shared Service Arrangement,Publicity - Advertising,40157,Miscellaneous Expenses,5034,19/9/2013 - Facebook - Promoting Chorley Live ,05/12/2013,92400,17.61,Revenue,Barclaycard Commercial,59848
Chorley Borough Council,http://statistics.data.gov.uk/id/local-authority/30UE,Central Support Services,1009,Shared Service Arrangement,Other Fees,40212,Miscellaneous Expenses,5034,23/9/2013 - Paypal UK Wristband - Chorley Live Wristbands ,05/12/2013,92400,123.78,Revenue,Barclaycard Commercial,59848
Chorley Borough Council,http://statistics.data.gov.uk/id/local-authority/30UE,Central Support Services,1009,Shared Service Arrangement,Publicity - Advertising,40157,Miscellaneous Expenses,5034,25/9/2013 - Facebook - Promoting Chorley Live ,05/12/2013,92400,13.57,Revenue,Barclaycard Commercial,59848
Chorley Borough Council,http://statistics.data.gov.uk/id/local-authority/30UE,Central Support Services,1009,Shared Service Arrangement,Other Fees,40212,Miscellaneous Expenses,5034,26/9/2013 - Dreamstime.com - Stock Photography ,05/12/2013,92400,301.59,Revenue,Barclaycard Commercial,59848
Chorley Borough Council,http://statistics.data.gov.uk/id/local-authority/30UE,Local Tax Collection,1010,Shared Service Arrangement,Legal Fees,40171,Miscellaneous Expenses,5034,16/10/2013 - HM Courts - Services - 16 Liability orders,18/12/2013,92401,48.00,Revenue,Barclaycard Commercial,59848
Chorley Borough Council,http://statistics.data.gov.uk/id/local-authority/30UE,Unapportionable Central OHeads,1009,Shared Service Arrangement,Computer Software-Maintenance,40107,Communication and Computing,5028,28/10/2013 - Thawte - SSL Web Server Certificate - 3 Years,18/12/2013,92401,317.02,Revenue,Barclaycard Commercial,59848
Chorley Borough Council,http://statistics.data.gov.uk/id/local-authority/30UE,Economic Development,1096,Shared Service Arrangement,Promotional Expenses,40159,Miscellaneous Expenses,5034,9/10/2013 - Mailchimp - Mailchimp monthly charge,18/12/2013,92401,18.92,Revenue,Barclaycard Commercial,59848
Chorley Borough Council,http://statistics.data.gov.uk/id/local-authority/30UE,Unapportionable Central OHeads,1009,Shared Service Arrangement,Tools & Equipment - Purchase,40003,"Equipment, Furniture & Materia",5023,9/10/2013 - www.noelkegg.com - 10.8v Drill & Impact Driver,18/12/2013,92401,119.96,Revenue,Barclaycard Commercial,59848
Chorley Borough Council,http://statistics.data.gov.uk/id/local-authority/30UE,Central Support Services,1009,Shared Service Arrangement,Computer Software-Purchase,40100,Communication and Computing,5028,10/10/2013 - Avangate*Diafaan.com - Diafann SMS Server - basic edition,18/12/2013,92401,309.67,Revenue,Barclaycard Commercial,59848
Chorley Borough Council,http://statistics.data.gov.uk/id/local-authority/30UE,Homelessness,1075,Shared Service Arrangement,Training Course Fees,17010,Indirect Employee Expenses,5002,15/10/2013 - Lastminute.com - Holiday Inn Winchester 15/10/13,18/12/2013,92401,117.30,Revenue,Barclaycard Commercial,59848
Chorley Borough Council,http://statistics.data.gov.uk/id/local-authority/30UE,Local Tax Collection,1010,Shared Service Arrangement,Legal Fees,40171,Miscellaneous Expenses,5034,27/9/2013 - HM Courts - Services - 391 Liability orders,18/12/2013,92401,"1,173.00",Revenue,Barclaycard Commercial,59848
Chorley Borough Council,http://statistics.data.gov.uk/id/local-authority/30UE,Local Tax Collection,1010,Shared Service Arrangement,Legal Fees,40171,Miscellaneous Expenses,5034,18/10/2013 - HM Courts - Services - 273 Liability orders,18/12/2013,92401,819.00,Revenue,Barclaycard Commercial,59848
Chorley Borough Council,http://statistics.data.gov.uk/id/local-authority/30UE,Unapportionable Central OHeads,1009,Shared Service Arrangement,Publicity - Advertising,40157,Miscellaneous Expenses,5034,27/9/2013 - Facebook - Promoting Chorley Live ,18/12/2013,92401,26.00,Revenue,Barclaycard Commercial,59848
Chorley Borough Council,http://statistics.data.gov.uk/id/local-authority/30UE,Central Support Services,1009,Shared Service Arrangement,Publicity - Advertising,40157,Miscellaneous Expenses,5034,28/9/2013 - Facebook - Promoting Chorley Live ,18/12/2013,92401,16.00,Revenue,Barclaycard Commercial,59848
Chorley Borough Council,http://statistics.data.gov.uk/id/local-authority/30UE,Unapportionable Central OHeads,1009,Shared Service Arrangement,Publicity - Advertising,40157,Miscellaneous Expenses,5034,29/9/2013 - Facebook - Promoting Chorley Live ,18/12/2013,92401,21.38,Revenue,Barclaycard Commercial,59848
Chorley Borough Council,http://statistics.data.gov.uk/id/local-authority/30UE,Central Support Services,1009,Shared Service Arrangement,Publicity - Advertising,40157,Miscellaneous Expenses,5034,30/9/2013 - Facebook - Promoting Chorley Live ,18/12/2013,92401,28.96,Revenue,Barclaycard Commercial,59848
Chorley Borough Council,http://statistics.data.gov.uk/id/local-authority/30UE,Unapportionable Central OHeads,1009,Shared Service Arrangement,Publicity - Advertising,40157,Miscellaneous Expenses,5034,1/10/2013 - Facebook - Promoting Chorley Live ,18/12/2013,92401,16.01,Revenue,Barclaycard Commercial,59848
Chorley Borough Council,http://statistics.data.gov.uk/id/local-authority/30UE,Central Support Services,1009,Shared Service Arrangement,Publicity - Advertising,40157,Miscellaneous Expenses,5034,1/10/2013 - Facebook - Promoting Chorley Live ,18/12/2013,92401,16.12,Revenue,Barclaycard Commercial,59848
Chorley Borough Council,http://statistics.data.gov.uk/id/local-authority/30UE,Central Support Services,1009,Shared Service Arrangement,Other Fees,40212,Miscellaneous Expenses,5034,2/10/2013 - Paypal UK Wristband - Chorley Live Wristbands ,18/12/2013,92401,46.27,Revenue,Barclaycard Commercial,59848
Chorley Borough Council,http://statistics.data.gov.uk/id/local-authority/30UE,Unapportionable Central OHeads,1009,Shared Service Arrangement,Other Fees,40212,Miscellaneous Expenses,5034,3/10/2013 - Disbarring Services - Person Licence,18/12/2013,92401,37.00,Revenue,Barclaycard Commercial,59848
Chorley Borough Council,http://statistics.data.gov.uk/id/local-authority/30UE,Central Support Services,1009,Shared Service Arrangement,Publicity - Advertising,40157,Miscellaneous Expenses,5034,3/10/2013 - Facebook - Promoting Chorley Live,18/12/2013,92401,16.05,Revenue,Barclaycard Commercial,59848
Chorley Borough Council,http://statistics.data.gov.uk/id/local-authority/30UE,Unapportionable Central OHeads,1009,Shared Service Arrangement,Publicity - Advertising,40157,Miscellaneous Expenses,5034,4/10/2013 - Facebook - Promoting Chorley Live ,18/12/2013,92401,16.00,Revenue,Barclaycard Commercial,59848
Chorley Borough Council,http://statistics.data.gov.uk/id/local-authority/30UE,Local Tax Collection,1010,Shared Service Arrangement,Legal Fees,40171,Miscellaneous Expenses,5034,7/10/2013 - Virgintrains.co.uk - Attendance at Mtg Chorley - Manchester ,18/12/2013,92401,14.40,Revenue,Barclaycard Commercial,59848
Chorley Borough Council,http://statistics.data.gov.uk/id/local-authority/30UE,Unapportionable Central OHeads,1009,Shared Service Arrangement,Publicity - Advertising,40157,Miscellaneous Expenses,5034,10/10/2013 - Facebook - Promoting Chorley Live ,18/12/2013,92401,8.99,Revenue,Barclaycard Commercial,59848
Chorley Borough Council,http://statistics.data.gov.uk/id/local-authority/30UE,Economic Development,1096,Shared Service Arrangement,Promotional Expenses,40159,Miscellaneous Expenses,5034,9/11/2013 - Mailchimp - Mailchimp,18/12/2013,92594,18.99,Revenue,Barclaycard Commercial,59848
Chorley Borough Council,http://statistics.data.gov.uk/id/local-authority/30UE,Central Support Services,1009,Shared Service Arrangement,Tools & Equipment - Purchase,40003,"Equipment, Furniture & Materia",5023,22/11/2013 - www.millsltd.com - Carpet Tile Lifter,18/12/2013,92594,124.68,Revenue,Barclaycard Commercial,59848
Chorley Borough Council,http://statistics.data.gov.uk/id/local-authority/30UE,Homelessness,1075,Shared Service Arrangement,Prevention Fund,40242,Miscellaneous Expenses,5034,27/11/2013 - Northern Rail Ltd - Chorley - Blackburn 27/11/13,18/12/2013,92594,9.10,Revenue,Barclaycard Commercial,59848
Chorley Borough Council,http://statistics.data.gov.uk/id/local-authority/30UE,Local Tax Collection,1010,Shared Service Arrangement,Legal Fees,40171,Miscellaneous Expenses,5034,14/11/2013 - HM Courts - Services - 1 Warranty,18/12/2013,92594,75.00,Revenue,Barclaycard Commercial,59848
Chorley Borough Council,http://statistics.data.gov.uk/id/local-authority/30UE,Local Tax Collection,1010,Shared Service Arrangement,Legal Fees,40171,Miscellaneous Expenses,5034,14/11/2013 - HM Courts - Services - 16 Liability Orders,18/12/2013,92594,48.00,Revenue,Barclaycard Commercial,59848
Chorley Borough Council,http://statistics.data.gov.uk/id/local-authority/30UE,Local Tax Collection,1010,Shared Service Arrangement,Legal Fees,40171,Miscellaneous Expenses,5034,14/11/2013 - HM Courts - Services - 462 Liability Orders,18/12/2013,92594,"1,386.00",Revenue,Barclaycard Commercial,59848
Chorley Borough Council,http://statistics.data.gov.uk/id/local-authority/30UE,Corporate Management,1008,Shared Service Arrangement,Staff Rail Fares,30032,Public Transport,5019,4/11/2013 - Virgintrains.co.uk - Preston to London Euston 11/12/13,18/12/2013,92594,281.50,Revenue,Barclaycard Commercial,59848
Chorley Borough Council,http://statistics.data.gov.uk/id/local-authority/30UE,Corporate Management,1008,Shared Service Arrangement,Consultants` Fees,40077,Services,5027,4/11/2013 - Surveymonkey.com - SurveyMonkey Gold Plan 24/10/13 to 23/10/14,18/12/2013,92594,192.00,Revenue,Barclaycard Commercial,59848
Chorley Borough Council,http://statistics.data.gov.uk/id/local-authority/30UE,Central Support Services,1009,Shared Service Arrangement,Publicity - Advertising,40157,Miscellaneous Expenses,5034,6/11/2013 - Facebook - Facebook - Promoting Chorley Council ,18/12/2013,92594,9.00,Revenue,Barclaycard Commercial,59848
Chorley Borough Council,http://statistics.data.gov.uk/id/local-authority/30UE,Unapportionable Central OHeads,1009,Shared Service Arrangement,Publicity - Advertising,40157,Miscellaneous Expenses,5034,12/11/2013 - Facebook - Facebook - Promoting Chorley Council ,18/12/2013,92594,16.00,Revenue,Barclaycard Commercial,59848
Chorley Borough Council,http://statistics.data.gov.uk/id/local-authority/30UE,Central Support Services,1009,Shared Service Arrangement,Publicity - Advertising,40157,Miscellaneous Expenses,5034,14/11/2013 - Facebook - Facebook - Promoting Chorley Council ,18/12/2013,92594,19.00,Revenue,Barclaycard Commercial,59848
Chorley Borough Council,http://statistics.data.gov.uk/id/local-authority/30UE,Building Control,1090,Planning,Other Fees,40212,Miscellaneous Expenses,5034,Adlington Train Station 6 December 2013 - Make safe concrete block wall,18/12/2013,92608,655.00,Revenue,Barlow Construct & Renovation,16609
Chorley Borough Council,http://statistics.data.gov.uk/id/local-authority/30UE,Central Support Services,1009,Policy & Performance,Exhibitions & Special Events,40158,Miscellaneous Expenses,5034,Staging and hosting Christmas lights switch on,18/12/2013,92721,"6,609.60",Revenue,Bauer Active Ltd,50574
Chorley Borough Council,http://statistics.data.gov.uk/id/local-authority/30UE,Unapportionable Central OHeads,1009,Policy & Performance,Exhibitions & Special Events,40158,Miscellaneous Expenses,5034,Staging and hosting Christmas lights switch on,18/12/2013,92722,"1,010.00",Revenue,Bauer Active Ltd,50574
Chorley Borough Council,http://statistics.data.gov.uk/id/local-authority/30UE,Unapportionable Central OHeads,1009,Policy & Performance,Exhibitions & Special Events,40158,Miscellaneous Expenses,5034,Staging and hosting Christmas lights switch on,18/12/2013,92723,"3,000.00",Revenue,Bauer Active Ltd,50574
Chorley Borough Council,http://statistics.data.gov.uk/id/local-authority/30UE,Central Support Services,1009,Policy & Performance,Exhibitions & Special Events,40158,Miscellaneous Expenses,5034,Staging and hosting Christmas lights switch on,18/12/2013,92724,"1,000.00",Revenue,Bauer Active Ltd,50574
Chorley Borough Council,http://statistics.data.gov.uk/id/local-authority/30UE,Corporate Management,1008,Health Environment & Neighbourhoods,Tools & Equipment - Maintenance,40005,"Equipment, Furniture & Materia",5023,Service and Maintenance of CCTV system,13/12/2013,92508,657.85,Revenue,Baydale Control Systems,21154
Chorley Borough Council,http://statistics.data.gov.uk/id/local-authority/30UE,Economic Development,1096,Economic Development,Fixtures & Fittings - Purchase,20027,Fixtures and Fittings,5010,To supply CCTV as per Quote Reference: QT6104. In addition to this please re-locate an existing cctv camera,18/12/2013,92685,"1,931.32",Revenue,Baydale Control Systems,21154
Chorley Borough Council,http://statistics.data.gov.uk/id/local-authority/30UE,Unapportionable Central OHeads,1009,"Customer, ICT & Transactional",Consultants` Fees,40077,Services,5027,Support Services as agreed with Customer Transactional and ICT Services. Estimated 3 days a week,11/12/2013,92512,"1,800.00",Revenue,REDACTED PERSONAL DATA,22238
Chorley Borough Council,http://statistics.data.gov.uk/id/local-authority/30UE,Homelessness,1075,Governance,Gas,20014,Energy Costs,5006,Cotswold House,18/12/2013,92711,"1,333.56",Revenue,British Gas Business,22242
Chorley Borough Council,http://statistics.data.gov.uk/id/local-authority/30UE,Democratic Represent and  Mgnt,1007,Governance,Gas,20014,Energy Costs,5006,Coach House,18/12/2013,92711,521.61,Revenue,British Gas Business,22242
Chorley Borough Council,http://statistics.data.gov.uk/id/local-authority/30UE,Community Development,1097,Governance,Gas,20014,Energy Costs,5006,Accounting Adc Svcs,18/12/2013,92711,62.08,Revenue,British Gas Business,22242
Chorley Borough Council,http://statistics.data.gov.uk/id/local-authority/30UE,Democratic Represent and  Mgnt,1007,Governance,Gas,20014,Energy Costs,5006,Yarrow Valley Park,18/12/2013,92711,12.83,Revenue,British Gas Business,22242
Chorley Borough Council,http://statistics.data.gov.uk/id/local-authority/30UE,Unapportionable Central OHeads,1009,Governance,Gas,20014,Energy Costs,5006,Bengal Street,18/12/2013,92711,218.19,Revenue,British Gas Business,22242
Chorley Borough Council,http://statistics.data.gov.uk/id/local-authority/30UE,Culture & Heritage,1036,Governance,Gas,20014,Energy Costs,5006,Astley Cottage,18/12/2013,92711,161.38,Revenue,British Gas Business,22242
Chorley Borough Council,http://statistics.data.gov.uk/id/local-authority/30UE,Democratic Represent and  Mgnt,1007,Governance,Gas,20014,Energy Costs,5006,Clayton Brook Comm Ctr,18/12/2013,92711,135.73,Revenue,British Gas Business,22242
Chorley Borough Council,http://statistics.data.gov.uk/id/local-authority/30UE,Democratic Represent and  Mgnt,1007,Governance,Gas,20014,Energy Costs,5006,Astley Village Comm Ctr,18/12/2013,92711,297.60,Revenue,British Gas Business,22242
Chorley Borough Council,http://statistics.data.gov.uk/id/local-authority/30UE,Democratic Represent and  Mgnt,1007,Governance,Gas,20014,Energy Costs,5006,Astley Farm House,18/12/2013,92711,12.91,Revenue,British Gas Business,22242
Chorley Borough Council,http://statistics.data.gov.uk/id/local-authority/30UE,Democratic Represent and  Mgnt,1007,Governance,Gas,20014,Energy Costs,5006,Eaves Green Comm Ctr,18/12/2013,92711,232.07,Revenue,British Gas Business,22242
Chorley Borough Council,http://statistics.data.gov.uk/id/local-authority/30UE,Unapportionable Central OHeads,1009,Governance,Gas,20014,Energy Costs,5006,Union Street,18/12/2013,92711,"1,253.26",Revenue,British Gas Business,22242
Chorley Borough Council,http://statistics.data.gov.uk/id/local-authority/30UE,Culture & Heritage,1036,Governance,Gas,20014,Energy Costs,5006,Astley Hall,18/12/2013,92711,"1,502.88",Revenue,British Gas Business,22242
Chorley Borough Council,http://statistics.data.gov.uk/id/local-authority/30UE,Unapportionable Central OHeads,1009,Governance,Gas,20014,Energy Costs,5006,Town Hall,18/12/2013,92711,"1,520.43",Revenue,British Gas Business,22242
Chorley Borough Council,http://statistics.data.gov.uk/id/local-authority/30UE,Unapportionable Central OHeads,1009,"Customer, ICT & Transactional",Network Line Rental,40248,Communication and Computing,5028,Private Circuit Bill,20/12/2013,92719,321.74,Revenue,British Telecommunications Plc,17131
Chorley Borough Council,http://statistics.data.gov.uk/id/local-authority/30UE,Recreation & Sport,1037,Health Environment & Neighbourhoods,Grants To Other Organisations,40127,Grants and Subscriptions,5031,S106 grant,18/12/2013,92600,"3,000.00",Revenue,Buckshaw Village Church,51143
Chorley Borough Council,http://statistics.data.gov.uk/id/local-authority/30UE,Democratic Represent and  Mgnt,1007,Health Environment & Neighbourhoods,Grants To Other Organisations,40127,Grants and Subscriptions,5031,S106 grant,18/12/2013,92599,"3,000.00",Revenue,Buckshaw Village Community Association,22369
Chorley Borough Council,http://statistics.data.gov.uk/id/local-authority/30UE,Democratic Represent and  Mgnt,1007,Health Environment & Neighbourhoods,Grants To Other Organisations,40127,Grants and Subscriptions,5031,S106 Grant,18/12/2013,92602,"3,400.00",Revenue,Buckshaw Village Scout Group,59139
Chorley Borough Council,http://statistics.data.gov.uk/id/local-authority/30UE,Democratic Represent and  Mgnt,1007,Health Environment & Neighbourhoods,Grants To Other Organisations,40127,Grants and Subscriptions,5031,Grant from S106 Youth and Community Fund,18/12/2013,92597,"4,000.00",Revenue,Buckshaw Youth Association,22310
Chorley Borough Council,http://statistics.data.gov.uk/id/local-authority/30UE,Service Management & Support,1009,Streetscene & Leisure Contracts,Supplies-Grounds Maintenance,40025,"Equipment, Furniture & Materia",5023,Supply Highway fast setting mortar 25kg to be delivered to Bengal St depot,11/12/2013,92479,417.50,Revenue,C & W BERRY LIMITED,18180
Chorley Borough Council,http://statistics.data.gov.uk/id/local-authority/30UE,Capital,Capital,Streetscene & Leisure Contracts,Equipment,3014,Capital Expenditure,Capital,24 panels of Heras fencing,11/12/2013,92481,739.75,Capital,C & W BERRY LIMITED,18180
Chorley Borough Council,http://statistics.data.gov.uk/id/local-authority/30UE,Central Support Services,1009,Streetscene & Leisure Contracts,Refuse Collection,20037,Cleaning and Domestic Supplies,5012,Emotying of interceptor tank and cleaning of gullies at Bengal St depot from 01/04/2013 to 31/03/2014,23/12/2013,92458,300.00,Revenue,C J Lyon,16579
Chorley Borough Council,http://statistics.data.gov.uk/id/local-authority/30UE,Community Development,1097,Health Environment & Neighbourhoods,Miscellaneous Expenses,40200,Miscellaneous Expenses,5034,"2 x Clever SID Speed Sign Complete Replaceable Battery, Palm VX 8Mb & Starter Kit, VDA2 Entry Level Data Processing",05/12/2013,92343,"5,624.00",Revenue,CA Traffic Ltd,62043
Chorley Borough Council,http://statistics.data.gov.uk/id/local-authority/30UE,Economic Development,1096,Economic Development,Stationery,40050,"Printing, Stationery & General",5026,Market receipt books starting from number 192501 330.00 per pack of 10,13/12/2013,92552,330.00,Revenue,Calderprint Ltd,17090
Chorley Borough Council,http://statistics.data.gov.uk/id/local-authority/30UE,Central Support Services,1009,"Customer, ICT & Transactional",Printing,40043,"Printing, Stationery & General",5026,GB-505918-OKL,20/12/2013,92677,"1,898.00",Revenue,Canon (UK) Ltd,17492
Chorley Borough Council,http://statistics.data.gov.uk/id/local-authority/30UE,Unapportionable Central OHeads,1009,"Customer, ICT & Transactional",Printing,40043,"Printing, Stationery & General",5026,GB-505928-OKL,20/12/2013,92677,400.36,Revenue,Canon (UK) Ltd,17492
Chorley Borough Council,http://statistics.data.gov.uk/id/local-authority/30UE,Central Support Services,1009,"Customer, ICT & Transactional",Printing,40043,"Printing, Stationery & General",5026,GB-506449-OKL,20/12/2013,92677,469.87,Revenue,Canon (UK) Ltd,17492
Chorley Borough Council,http://statistics.data.gov.uk/id/local-authority/30UE,Central Support Services,1009,"Customer, ICT & Transactional",Photocopier Charges,40047,"Printing, Stationery & General",5026,GB-505967-OKL,20/12/2013,92678,"1,281.21",Revenue,Canon (UK) Ltd,17492
Chorley Borough Council,http://statistics.data.gov.uk/id/local-authority/30UE,Economic Development,1096,Economic Development,Grants To Other Organisations,40127,Grants and Subscriptions,5031,Starting in business grant,20/12/2013,92604,747.71,Revenue,Carol A Hilton,62822
Chorley Borough Council,http://statistics.data.gov.uk/id/local-authority/30UE,Regulatory Services,1048,Health Environment & Neighbourhoods,Taxi Testing & Vehicle Safety Report,40234,Services,5027,Mot,18/12/2013,92607,438.80,Revenue,Chorley Autocare Ltd,17110
Chorley Borough Council,http://statistics.data.gov.uk/id/local-authority/30UE,Regulatory Services,1048,Health Environment & Neighbourhoods,Taxi Testing & Vehicle Safety Report,40234,Services,5027,Mot,18/12/2013,92607,68.40,Revenue,Chorley Autocare Ltd,17110
Chorley Borough Council,http://statistics.data.gov.uk/id/local-authority/30UE,Democratic Represent and  Mgnt,1007,Health Environment & Neighbourhoods,Children's Activities,40188,Miscellaneous Expenses,5034,Delivery of Athletics camp during summer,20/12/2013,91607,486.00,Revenue,Chorley School Sport Partnership,56115
Chorley Borough Council,http://statistics.data.gov.uk/id/local-authority/30UE,Community Development,1097,Policy & Performance,Citizens Advice Bureau,40125,Grants and Subscriptions,5031,Chorley Volunteering Project 2013/14 - second half funding,18/12/2013,92668,"7,326.00",Revenue,Chorley Sth Ribble & Dist Citizen Advice Bureaux,17035
Chorley Borough Council,http://statistics.data.gov.uk/id/local-authority/30UE,Economic Development,1096,Economic Development,Grants To Other Organisations,40127,Grants and Subscriptions,5031,Business Rates Subsidy - 2nd Payment,06/12/2013,92290,"1,965.89",Revenue,Chorley Travel Lounge Ltd,61872
Chorley Borough Council,http://statistics.data.gov.uk/id/local-authority/30UE,Corporate Management,1008,Shared Service Arrangement,Professional Fees,14011,Direct Employee Expenses,5001,Professional Qualification 01 Jan 2014 - 31 Dec 2014,11/12/2013,92514,310.00,Revenue,CIPFA,16201
Chorley Borough Council,http://statistics.data.gov.uk/id/local-authority/30UE,Central Support Services,1009,Shared Service Arrangement,Publications,40054,"Printing, Stationery & General",5026,Code of Practice in Local Authority Accounting in the United Kingdom: Guidance Notes for Practitioners 2013/14 Accounts,18/12/2013,92643,695.00,Revenue,CIPFA,16201
Chorley Borough Council,http://statistics.data.gov.uk/id/local-authority/30UE,Unapportionable Central OHeads,1009,Shared Service Arrangement,Publications,40054,"Printing, Stationery & General",5026,Service Reporting Code of Practice for Local Authorities 2014/15,18/12/2013,92643,455.00,Revenue,CIPFA,16201
Chorley Borough Council,http://statistics.data.gov.uk/id/local-authority/30UE,Central Support Services,1009,Shared Service Arrangement,Publications,40054,"Printing, Stationery & General",5026,The Prudential Code for Capital Finance in Local Authorities: Guidance Notes for Practitioners (2013 Edition) - Printed,18/12/2013,92643,230.00,Revenue,CIPFA,16201
Chorley Borough Council,http://statistics.data.gov.uk/id/local-authority/30UE,Unapportionable Central OHeads,1009,Shared Service Arrangement,Publications,40054,"Printing, Stationery & General",5026,Financial Statements: A Good Practice Guide for Local Authorities - Printed,18/12/2013,92643,135.00,Revenue,CIPFA,16201
Chorley Borough Council,http://statistics.data.gov.uk/id/local-authority/30UE,Unapportionable Central OHeads,1009,Shared Service Arrangement,Publications,40054,"Printing, Stationery & General",5026,Postage,18/12/2013,92643,3.75,Revenue,CIPFA,16201
Chorley Borough Council,http://statistics.data.gov.uk/id/local-authority/30UE,Democratic Represent and  Mgnt,1007,Streetscene & Leisure Contracts,External Contractor,40198,Miscellaneous Expenses,5034,Installation of section of water pipe at Crosse Hall Allotments as per quotation JE4718 13,18/12/2013,91853,570.70,Revenue,Conservation Contracts North West,20520
Chorley Borough Council,http://statistics.data.gov.uk/id/local-authority/30UE,Democratic Represent and  Mgnt,1007,Streetscene & Leisure Contracts,External Contractor,40198,Miscellaneous Expenses,5034,"Footpath works at Crosse Hall Allotments as per quotation JE4644 13, option 2, recycled aggregate",18/12/2013,91853,"2,531.75",Revenue,Conservation Contracts North West,20520
Chorley Borough Council,http://statistics.data.gov.uk/id/local-authority/30UE,Democratic Represent and  Mgnt,1007,Streetscene & Leisure Contracts,Grounds Maintenance Contractor,20043,Grounds Maintenance Costs,5013,4 days of management of heatland at Withnell Local Nature Reserve in the areas indicated during site visit.  ,05/12/2013,92253,"1,200.00",Revenue,Conservation Contracts North West,20520
Chorley Borough Council,http://statistics.data.gov.uk/id/local-authority/30UE,Service Management & Support,1009,Streetscene & Leisure Contracts,Grounds Maintenance Contractor,20043,Grounds Maintenance Costs,5013,Various treeworks,22/11/2013,92217,"8,981.25",Revenue,Cornthwaite Tree Care,21250
Chorley Borough Council,http://statistics.data.gov.uk/id/local-authority/30UE,Service Management & Support,1009,Streetscene & Leisure Contracts,Grounds Maintenance Contractor,20043,Grounds Maintenance Costs,5013,Various works in and around Chorley,23/12/2013,92461,"8,981.25",Revenue,Cornthwaite Tree Care,21250
Chorley Borough Council,http://statistics.data.gov.uk/id/local-authority/30UE,Economic Development,1096,Economic Development,Grants To Other Organisations,40127,Grants and Subscriptions,5031,Growth Grant,18/12/2013,92588,"10,000.00",Revenue,CSM (Chorley) Ltd,62057
Chorley Borough Council,http://statistics.data.gov.uk/id/local-authority/30UE,Service Management & Support,1009,Streetscene & Leisure Contracts,Hire Of Transport,30028,Contrct Hire & Operating Lease,5018,Hire of compact sweeper at price quoted from 30/09/2013 to 03/01/2014,23/12/2013,92463,"2,457.00",Revenue,Dawson Rental Sweepers,22011
Chorley Borough Council,http://statistics.data.gov.uk/id/local-authority/30UE,Service Management & Support,1009,Streetscene & Leisure Contracts,Hire Of Transport,30028,Contrct Hire & Operating Lease,5018,Hire of compact sweeper at price quoted from 30/09/2013 to 03/01/2014,23/12/2013,92464,"1,974.00",Revenue,Dawson Rental Sweepers,22011
Chorley Borough Council,http://statistics.data.gov.uk/id/local-authority/30UE,Service Management & Support,1009,Streetscene & Leisure Contracts,Hire Of Transport,30028,Contrct Hire & Operating Lease,5018,Hire of compact sweeper at price quoted from 30/09/2013 to 03/01/2014,23/12/2013,92632,"3,020.00",Revenue,Dawson Rental Sweepers,22011
Chorley Borough Council,http://statistics.data.gov.uk/id/local-authority/30UE,Service Management & Support,1009,Streetscene & Leisure Contracts,Hire Of Transport,30028,Contrct Hire & Operating Lease,5018,Hire of Johnston VT650 at price quoted from  30/09/2013 to 03/01/2014,23/12/2013,92633,"1,974.00",Revenue,Dawson Rental Sweepers,22011
Chorley Borough Council,http://statistics.data.gov.uk/id/local-authority/30UE,Capital,Capital,Governance,Other Capital Related Fees,3024,Capital Expenditure,Capital,Professional services project coordination and valuation of Market Walk Shopping Centre,20/12/2013,92752,"149,000.00",Capital,Deloitte LLP,58651
Chorley Borough Council,http://statistics.data.gov.uk/id/local-authority/30UE,Collection Fund Revenue Accoun,,Shared Service Arrangement,NNDR Central Share,2034,Precepts & Collection Fund,Precept,collection fund,18/12/2013,92577,"1,366,418.00",Revenue,Department of Communities and Local Government,16280
Chorley Borough Council,http://statistics.data.gov.uk/id/local-authority/30UE,Non Domestic Rates Redistribut,,Shared Service Arrangement,Tariff to Central Government,49000,Expenditure not in NCOS,,retained rates,18/12/2013,92577,"787,452.00",Revenue,Department of Communities and Local Government,16280
Chorley Borough Council,http://statistics.data.gov.uk/id/local-authority/30UE,Economic Development,1096,Economic Development,Miscellaneous Expenses,40200,Miscellaneous Expenses,5034,x4 sets of the 10MPH bundle (SRBUNDLE16),06/12/2013,92396,"1,243.20",Revenue,ESE Direct,61608
Chorley Borough Council,http://statistics.data.gov.uk/id/local-authority/30UE,Capital,Capital,Streetscene & Leisure Contracts,Equipment,3014,Capital Expenditure,Capital,Replacement of AHU at Brinscall Pool as per Tender Conditions,18/12/2013,92684,"3,498.65",Capital,ESG Pool Ventilation Ltd,58135
Chorley Borough Council,http://statistics.data.gov.uk/id/local-authority/30UE,Democratic Represent and  Mgnt,1007,Streetscene & Leisure Contracts,Rent/Hire Of Premises,20017,Premises Rents,5007,"Duxbury Coach House Rent - 10,625.00 per qtr to be invoiced quarterly ",18/12/2013,92606,"1,395.14",Revenue,European Settled Estates Plc,16495
Chorley Borough Council,http://statistics.data.gov.uk/id/local-authority/30UE,Democratic Represent and  Mgnt,1007,Streetscene & Leisure Contracts,Rent/Hire Of Premises,20017,Premises Rents,5007,"Duxbury Coach House Rent - 10,625.00 per qtr To be invoiced quarterly",18/12/2013,92610,"11,750.00",Revenue,European Settled Estates Plc,16495
Chorley Borough Council,http://statistics.data.gov.uk/id/local-authority/30UE,Democratic Represent and  Mgnt,1007,Health Environment & Neighbourhoods,Grants To Other Organisations,40127,Grants and Subscriptions,5031,S106 Grant,18/12/2013,92601,"1,000.00",Revenue,Euxton Girls football Club,62965
Chorley Borough Council,http://statistics.data.gov.uk/id/local-authority/30UE,Democratic Represent and  Mgnt,1007,Streetscene & Leisure Contracts,Fixtures & Fittings - Purchase,20027,Fixtures and Fittings,5010,Six mats Dark Grey Standard Barrier Mats at Standard size 180cm x 115cm @ 145 + 15 delivery + VAT as discussed ,05/12/2013,92304,895.00,Revenue,Eyemats Limited,62635
Chorley Borough Council,http://statistics.data.gov.uk/id/local-authority/30UE,Service Management & Support,1009,Streetscene & Leisure Contracts,Hire Of Transport,30028,Contrct Hire & Operating Lease,5018,Hire of tractor,23/12/2013,92558,"1,639.84",Revenue,F R Sharrock Ltd,18091
Chorley Borough Council,http://statistics.data.gov.uk/id/local-authority/30UE,Service Management & Support,1009,Streetscene & Leisure Contracts,Grounds Maintenance Contractor,20043,Grounds Maintenance Costs,5013,Tree work carried out for overhanging branches Clayton Brook,11/12/2013,92429,"1,800.00",Revenue,Fassfern Forestry,54839
Chorley Borough Council,http://statistics.data.gov.uk/id/local-authority/30UE,Service Management & Support,1009,Streetscene & Leisure Contracts,Grounds Maintenance Contractor,20043,Grounds Maintenance Costs,5013,"Works completed, overhanging branches",23/12/2013,92654,"1,870.00",Revenue,Fassfern Forestry,54839
Chorley Borough Council,http://statistics.data.gov.uk/id/local-authority/30UE,Capital,Capital,Streetscene & Leisure Contracts,Other Contractor,3012,Capital Expenditure,Capital,Rangletts recreation ground,17/12/2013,92751,"64,171.28",Capital,Forkers Limited,61788
Chorley Borough Council,http://statistics.data.gov.uk/id/local-authority/30UE,Capital,Capital,Streetscene & Leisure Contracts,Other Contractor,3012,Capital Expenditure,Capital,Mineshaft Treatment Works at Ranglett`s Recreation Ground in accordance with Offer ref: QW088bqr ,23/12/2013,92754,"61,341.28",Capital,Forkers Limited,61788
Chorley Borough Council,http://statistics.data.gov.uk/id/local-authority/30UE,Service Management & Support,1009,Streetscene & Leisure Contracts,Freight Transport Assoc Fees,40150,Grants and Subscriptions,5031,Carryout 6 weekly safety inspection on PN02HRL for operator compliance,11/12/2013,92560,112.30,Revenue,Freight Transport Assoc Ltd,16333
Chorley Borough Council,http://statistics.data.gov.uk/id/local-authority/30UE,Service Management & Support,1009,Streetscene & Leisure Contracts,Freight Transport Assoc Fees,40150,Grants and Subscriptions,5031,Carryout safety check on Hooklift attachment on PN02HRL as requested,11/12/2013,92560,62.00,Revenue,Freight Transport Assoc Ltd,16333
Chorley Borough Council,http://statistics.data.gov.uk/id/local-authority/30UE,Service Management & Support,1009,Streetscene & Leisure Contracts,Freight Transport Assoc Fees,40150,Grants and Subscriptions,5031,Carryout 6 weekly safety inspection on DK07LDE for Olicence compliance,11/12/2013,92560,112.30,Revenue,Freight Transport Assoc Ltd,16333
Chorley Borough Council,http://statistics.data.gov.uk/id/local-authority/30UE,Service Management & Support,1009,Streetscene & Leisure Contracts,Freight Transport Assoc Fees,40150,Grants and Subscriptions,5031,Carryout 6 weekly safety inspection on DX55CVG for Olicence compliance,11/12/2013,92560,112.30,Revenue,Freight Transport Assoc Ltd,16333
Chorley Borough Council,http://statistics.data.gov.uk/id/local-authority/30UE,Service Management & Support,1009,Streetscene & Leisure Contracts,Freight Transport Assoc Fees,40150,Grants and Subscriptions,5031,Carryout 6 weekly safety inspection on DK05CXG for olicence compliance,11/12/2013,92560,112.30,Revenue,Freight Transport Assoc Ltd,16333
Chorley Borough Council,http://statistics.data.gov.uk/id/local-authority/30UE,Homelessness,1075,Housing,Grants To Other Organisations,40127,Grants and Subscriptions,5031,Personalised solutions budget support,20/12/2013,92663,"1,000.00",Revenue,Fylde Borough Council,20022
Chorley Borough Council,http://statistics.data.gov.uk/id/local-authority/30UE,Capital,Capital,Housing,Grants,3002,Capital Expenditure,Capital,Capital Works - Disabled Facilty Grant,20/12/2013,92712,"3,425.00",Capital,G McGavock Ltd,16921
Chorley Borough Council,http://statistics.data.gov.uk/id/local-authority/30UE,Capital,Capital,Housing,Grants,3002,Capital Expenditure,Capital,Capital works - disabled facilty grant,20/12/2013,92714,"3,010.00",Capital,G McGavock Ltd,16921
Chorley Borough Council,http://statistics.data.gov.uk/id/local-authority/30UE,Corporate Management,1008,Health Environment & Neighbourhoods,Impounded Dogs Costs,40207,Miscellaneous Expenses,5034,Kennelling fees for 2013/14,05/12/2013,92327,935.00,Revenue,Glencoe Boarding Kennels,16734
Chorley Borough Council,http://statistics.data.gov.uk/id/local-authority/30UE,Community Safety Crime Reduct,1043,Health Environment & Neighbourhoods,Impounded Dogs Costs,40207,Miscellaneous Expenses,5034,Kennelling fees for 2013/14,18/12/2013,92639,607.50,Revenue,Glencoe Boarding Kennels,16734
Chorley Borough Council,http://statistics.data.gov.uk/id/local-authority/30UE,Corporate Management,1008,Health Environment & Neighbourhoods,Vandalism Repairs,20005,Repairs Maintenance & Alts,5005,12 month contract for the removal of Graffiti in accordance with contract conditions and value added cleaning work as agreed,18/12/2013,92658,"1,246.87",Revenue,Graffiti Removal (North) Ltd,17320
Chorley Borough Council,http://statistics.data.gov.uk/id/local-authority/30UE,Corporate Management,1008,Shared Service Arrangement,External Audit,40064,Services,5027,2013/14 External Audit Fees,18/12/2013,92720,"14,860.00",Revenue,Grant Thornton UK LLP,57322
Chorley Borough Council,http://statistics.data.gov.uk/id/local-authority/30UE,Central Support Services,1009,Shared Service Arrangement,HM Land Registry Fees,40174,Miscellaneous Expenses,5034,legal,18/12/2013,92578,6.00,Revenue,H M Land Registry,17567
Chorley Borough Council,http://statistics.data.gov.uk/id/local-authority/30UE,Unapportionable Central OHeads,1009,Shared Service Arrangement,HM Land Registry Fees,40174,Miscellaneous Expenses,5034,liberata,18/12/2013,92578,40.00,Revenue,H M Land Registry,17567
Chorley Borough Council,http://statistics.data.gov.uk/id/local-authority/30UE,Local Tax Collection,1010,Shared Service Arrangement,HM Land Registry Fees,40174,Miscellaneous Expenses,5034,local tax,18/12/2013,92578,54.00,Revenue,H M Land Registry,17567
Chorley Borough Council,http://statistics.data.gov.uk/id/local-authority/30UE,Development Control,1091,Shared Service Arrangement,HM Land Registry Fees,40174,Miscellaneous Expenses,5034,planning,18/12/2013,92578,261.00,Revenue,H M Land Registry,17567
Chorley Borough Council,http://statistics.data.gov.uk/id/local-authority/30UE,Community Safety Crime Reduct,1043,Shared Service Arrangement,HM Land Registry Fees,40174,Miscellaneous Expenses,5034,people,18/12/2013,92578,119.00,Revenue,H M Land Registry,17567
Chorley Borough Council,http://statistics.data.gov.uk/id/local-authority/30UE,Housing Benefit Administration,1077,Shared Service Arrangement,HM Land Registry Fees,40174,Miscellaneous Expenses,5034,revs,18/12/2013,92578,18.00,Revenue,H M Land Registry,17567
Chorley Borough Council,http://statistics.data.gov.uk/id/local-authority/30UE,Democratic Represent and  Mgnt,1007,Streetscene & Leisure Contracts,Printing,40043,"Printing, Stationery & General",5026,Printing of leaflets for Yarrow Valley Country Park as per quote 95270 and 96158 for delivery Bengal Street,18/12/2013,92484,451.00,Revenue,Haslam PrintersLtd,21777
Chorley Borough Council,http://statistics.data.gov.uk/id/local-authority/30UE,Democratic Represent and  Mgnt,1007,Streetscene & Leisure Contracts,Printing,40043,"Printing, Stationery & General",5026,Printing of leaflets for Yarrow Valley Country Park as per quote 95270 and 96158 for delivery Bengal Street,18/12/2013,92485,252.00,Revenue,Haslam PrintersLtd,21777
Chorley Borough Council,http://statistics.data.gov.uk/id/local-authority/30UE,Corporate Management,1008,Streetscene & Leisure Contracts,Newsletter Production,40166,Miscellaneous Expenses,5034,"2014 Recycling Calendar x 10 kinds - 5200 x 8 kinds, 5600 x 2 kinds Size: A5 portrait 6pp Materials: 150gsm house offset.",18/12/2013,92635,"5,470.00",Revenue,Haslam PrintersLtd,21777
Chorley Borough Council,http://statistics.data.gov.uk/id/local-authority/30UE,Democratic Represent and  Mgnt,1007,Governance,Member Development Programme,17007,Indirect Employee Expenses,5002,Member learning session - Monday 7 October 2013 Planning Viability Member Training,20/12/2013,91462,400.00,Revenue,HDH Planning and Development LTD,61780
Chorley Borough Council,http://statistics.data.gov.uk/id/local-authority/30UE,Economic Development,1096,Economic Development,Grants To Other Organisations,40127,Grants and Subscriptions,5031,For guest speaking at business event 12th November,05/12/2013,92206,"3,165.00",Revenue,Hem Des LLP,62179
Chorley Borough Council,http://statistics.data.gov.uk/id/local-authority/30UE,Service Management & Support,1009,Streetscene & Leisure Contracts,Supplies-Grounds Maintenance,40025,"Equipment, Furniture & Materia",5023,Supply 2 x pallets of multi purpose compost to be delivered to Bengal St depot 114 bags in all,05/12/2013,92357,364.80,Revenue,Henry Alty Limited,22048
Chorley Borough Council,http://statistics.data.gov.uk/id/local-authority/30UE,Central Support Services,1009,HR & Org. Development,Computer Software-Maintenance,40107,Communication and Computing,5028,Maintenance Contract 06/01/14 - 05/01/15 - contract number HW4368,20/12/2013,92421,"2,063.87",Revenue,Hfx Ltd,17164
Chorley Borough Council,http://statistics.data.gov.uk/id/local-authority/30UE,Capital,Capital,Governance,Stamp Duty,3026,Capital Expenditure,Capital,Stamp Duty Market Walk,18/12/2013,92584,"890,000.00",Capital,HM Revenue & Customs,56499
Chorley Borough Council,http://statistics.data.gov.uk/id/local-authority/30UE,Housing Benefit Administration,1077,"Customer, ICT & Transactional",Stationery,40050,"Printing, Stationery & General",5026,"162 x 238mm White 90g window wallet gummed opaque Prtd green to face & reverse 20,000 - 21.55  per 1000 + vat",11/12/2013,92553,431.00,Revenue,Image Envelopes Ltd,55508
Chorley Borough Council,http://statistics.data.gov.uk/id/local-authority/30UE,Central Support Services,1009,"Customer, ICT & Transactional",Computer Equipment-Purchase,40098,Communication and Computing,5028,Ipads,05/12/2013,88239,790.68,Revenue,Insight Direct (UK) LTD,21768
Chorley Borough Council,http://statistics.data.gov.uk/id/local-authority/30UE,Control Accounts,Control,Shared Service Arrangement,Manual Control Account,1,Balance Sheet,Balance,REFUND,05/12/2013,CRREF28,675.50,Revenue,Insight Direct (UK) LTD,21768
Chorley Borough Council,http://statistics.data.gov.uk/id/local-authority/30UE,Service Management & Support,1009,Streetscene & Leisure Contracts,Vehicle Trackers,30046,Direct Transport Costs,5016,Yearly lease rental charges for vehicle tracking system for Chorley Council at price quoted,23/12/2013,92243,795.80,Revenue,Investec Asset Finance Plc,53879
Chorley Borough Council,http://statistics.data.gov.uk/id/local-authority/30UE,Community Development,1097,Governance,Premises Related Insurances,20068,Premises Related Insurance,5014,ADDRESS REDACTED Rent,18/12/2013,92729,"7,218.75",Revenue,J R Keys,17124
Chorley Borough Council,http://statistics.data.gov.uk/id/local-authority/30UE,Community Development,1097,Governance,Premises Related Insurances,20068,Premises Related Insurance,5014,insurance premium,18/12/2013,92730,716.32,Revenue,J R Keys,17124
Chorley Borough Council,http://statistics.data.gov.uk/id/local-authority/30UE,Service Management & Support,1009,Streetscene & Leisure Contracts,Supplies-Grounds Maintenance,40025,"Equipment, Furniture & Materia",5023,5`` feather boards in 6` lengths in brown - to be collected,23/12/2013,92415,21.60,Revenue,John H Mayor & Sons Ltd,16635
Chorley Borough Council,http://statistics.data.gov.uk/id/local-authority/30UE,Service Management & Support,1009,Streetscene & Leisure Contracts,Supplies-Grounds Maintenance,40025,"Equipment, Furniture & Materia",5023,2x 20ft Spruce Christmas trees 2x 14ft Spruce Christmas trees 2x 12ft Nordsman Christmas trees 1x 8ft Nordsman Chris..,23/12/2013,92415,659.28,Revenue,John H Mayor & Sons Ltd,16635
Chorley Borough Council,http://statistics.data.gov.uk/id/local-authority/30UE,Service Management & Support,1009,Streetscene & Leisure Contracts,Supplies-Grounds Maintenance,40025,"Equipment, Furniture & Materia",5023,"4`` full round stakes, 3 foot long with chamford edges",23/12/2013,92415,50.00,Revenue,John H Mayor & Sons Ltd,16635
Chorley Borough Council,http://statistics.data.gov.uk/id/local-authority/30UE,Service Management & Support,1009,Streetscene & Leisure Contracts,Supplies-Grounds Maintenance,40025,"Equipment, Furniture & Materia",5023,Supply timber bollards as requested with rebate,23/12/2013,92415,220.00,Revenue,John H Mayor & Sons Ltd,16635
Chorley Borough Council,http://statistics.data.gov.uk/id/local-authority/30UE,Democratic Represent and  Mgnt,1007,Streetscene & Leisure Contracts,Grounds Maintenance Contractor,20043,Grounds Maintenance Costs,5013,1 @ 3m x 100mm x 100mm Planed all round and treated,23/12/2013,92415,9.00,Revenue,John H Mayor & Sons Ltd,16635
Chorley Borough Council,http://statistics.data.gov.uk/id/local-authority/30UE,Democratic Represent and  Mgnt,1007,Streetscene & Leisure Contracts,Grounds Maintenance Contractor,20043,Grounds Maintenance Costs,5013,1 @ 3m x 150mm x 75mm Planed all round and treated,23/12/2013,92415,10.80,Revenue,John H Mayor & Sons Ltd,16635
Chorley Borough Council,http://statistics.data.gov.uk/id/local-authority/30UE,Service Management & Support,1009,Streetscene & Leisure Contracts,Supplies-Grounds Maintenance,40025,"Equipment, Furniture & Materia",5023,4`` full round stake 1.8m not pointed,23/12/2013,92415,220.24,Revenue,John H Mayor & Sons Ltd,16635
Chorley Borough Council,http://statistics.data.gov.uk/id/local-authority/30UE,Service Management & Support,1009,Streetscene & Leisure Contracts,Supplies-Grounds Maintenance,40025,"Equipment, Furniture & Materia",5023,Path edging boards- 4`` x 1`` x 4.8m to be delivered,23/12/2013,92415,40.56,Revenue,John H Mayor & Sons Ltd,16635
Chorley Borough Council,http://statistics.data.gov.uk/id/local-authority/30UE,Service Management & Support,1009,Streetscene & Leisure Contracts,Supplies-Grounds Maintenance,40025,"Equipment, Furniture & Materia",5023,Stakes for pathway edgeing boards to be delivered,23/12/2013,92415,28.00,Revenue,John H Mayor & Sons Ltd,16635
Chorley Borough Council,http://statistics.data.gov.uk/id/local-authority/30UE,Service Management & Support,1009,Streetscene & Leisure Contracts,Supplies-Grounds Maintenance,40025,"Equipment, Furniture & Materia",5023,staples,23/12/2013,92415,10.00,Revenue,John H Mayor & Sons Ltd,16635
Chorley Borough Council,http://statistics.data.gov.uk/id/local-authority/30UE,Development Control,1091,Planning,Statutory Notices,40160,Miscellaneous Expenses,5034,Planning Public Notices to appear in the Chorley Guardian average cost 322.61 per insertion  April 2013 - March 2014,13/12/2013,92550,298.75,Revenue,Johnston Publishing Ltd,20072
Chorley Borough Council,http://statistics.data.gov.uk/id/local-authority/30UE,Service Management & Support,1009,Streetscene & Leisure Contracts,Vehicle Maintenance,30045,Direct Transport Costs,5016,Supply windscreen for Johnston CX201 hired sweeper Reg YK61AUO after accident damage as discussed,23/12/2013,92556,640.88,Revenue,Johnston Sweepers Limited,20778
Chorley Borough Council,http://statistics.data.gov.uk/id/local-authority/30UE,Capital,Capital,Housing,Grants,3002,Capital Expenditure,Capital,Capital Works - Disabled Facility Grant,06/12/2013,92405,"2,755.00",Capital,K Berry Ltd,16421
Chorley Borough Council,http://statistics.data.gov.uk/id/local-authority/30UE,Capital,Capital,Housing,Grants,3002,Capital Expenditure,Capital,Capital Works - Disabled Facility Grant,06/12/2013,92407,"3,285.00",Capital,K Berry Ltd,16421
Chorley Borough Council,http://statistics.data.gov.uk/id/local-authority/30UE,Community Safety Crime Reduct,1043,Health Environment & Neighbourhoods,Miscellaneous Expenses,40200,Miscellaneous Expenses,5034,Dirty dog campaign for 2013/4,11/12/2013,92565,285.00,Revenue,Karen Chisholm,56874
Chorley Borough Council,http://statistics.data.gov.uk/id/local-authority/30UE,Corporate Management,1008,Health Environment & Neighbourhoods,Miscellaneous Expenses,40200,Miscellaneous Expenses,5034,Dirty dog campaign for 2013/4,11/12/2013,92566,390.00,Revenue,Karen Chisholm,56874
Chorley Borough Council,http://statistics.data.gov.uk/id/local-authority/30UE,Community Safety Crime Reduct,1043,Health Environment & Neighbourhoods,Miscellaneous Expenses,40200,Miscellaneous Expenses,5034,Dirty dog campaign for 2013/4,11/12/2013,92567,360.00,Revenue,Karen Chisholm,56874
Chorley Borough Council,http://statistics.data.gov.uk/id/local-authority/30UE,Corporate Management,1008,Health Environment & Neighbourhoods,Miscellaneous Expenses,40200,Miscellaneous Expenses,5034,Dirty dog campaign for 2013/4,11/12/2013,92568,322.50,Revenue,Karen Chisholm,56874
Chorley Borough Council,http://statistics.data.gov.uk/id/local-authority/30UE,Corporate Management,1008,Health Environment & Neighbourhoods,Miscellaneous Expenses,40200,Miscellaneous Expenses,5034,temporary work for Dirty Dog Campaign at 15 per hour for 145 hrs,18/12/2013,92665,495.00,Revenue,Karen Chisholm,56874
Chorley Borough Council,http://statistics.data.gov.uk/id/local-authority/30UE,Economic Development,1096,Economic Development,Grants To Other Organisations,40127,Grants and Subscriptions,5031,Starting in business grant,20/12/2013,92716,500.00,Revenue,NAME REDACTED,62963
Chorley Borough Council,http://statistics.data.gov.uk/id/local-authority/30UE,Control Accounts,Control,Shared Service Arrangement,General Balances,100,Balance Sheet,Balance,Salary deductions November,05/12/2013,92294,980.81,Revenue,Labour Councillors Association,17577
Chorley Borough Council,http://statistics.data.gov.uk/id/local-authority/30UE,Control Accounts,Control,Shared Service Arrangement,General Balances,100,Balance Sheet,Balance,dec deds,20/12/2013,92743,980.81,Revenue,Labour Councillors Association,17577
Chorley Borough Council,http://statistics.data.gov.uk/id/local-authority/30UE,Central Support Services,1009,Policy & Performance,Exhibitions & Special Events,40158,Miscellaneous Expenses,5034,Land train Christmas attraction for 14 and 15 December 2013,20/12/2013,92757,"2,300.00",Revenue,Lakeandland,63078
Chorley Borough Council,http://statistics.data.gov.uk/id/local-authority/30UE,Corporate Management,1008,Health Environment & Neighbourhoods,Other Contributions,40145,Grants and Subscriptions,5031,Chorley`s Contribution towards Domestic Violence,05/12/2013,91954,"9,000.00",Revenue,Lancashire County Council,17758
Chorley Borough Council,http://statistics.data.gov.uk/id/local-authority/30UE,Capital,Capital,Streetscene & Leisure Contracts,Main Contractor,3007,Capital Expenditure,Capital,Duxbury Hall Acess Road - Resurfacing works as per tender and contract. Duxbury Hall Access Road - Signage price�,18/12/2013,92398,"99,720.71",Capital,Lancashire County Council,17758
Chorley Borough Council,http://statistics.data.gov.uk/id/local-authority/30UE,Capital,Capital,Housing,Grants,3002,Capital Expenditure,Capital,Capital Works - Disabled Facility Grant,06/12/2013,92404,"3,382.00",Capital,Lancashire County Council,17758
Chorley Borough Council,http://statistics.data.gov.uk/id/local-authority/30UE,Capital,Capital,Housing,Grants,3002,Capital Expenditure,Capital,Capital Works - Disabled Facility Grant,06/12/2013,92408,"7,600.00",Capital,Lancashire County Council,17758
Chorley Borough Council,http://statistics.data.gov.uk/id/local-authority/30UE,Precepts and Collection Fund,Precepts,Shared Service Arrangement,LCC Precept,2009,Precepts & Collection Fund,Precept,precept nov,18/12/2013,92579,"3,601,187.00",Revenue,Lancashire County Council,18386
Chorley Borough Council,http://statistics.data.gov.uk/id/local-authority/30UE,Collection Fund Revenue Accoun,,Shared Service Arrangement,NNDR County Share,2036,Precepts & Collection Fund,Precept,PRECEPT,18/12/2013,92582,"234,243.00",Revenue,Lancashire County Council,18386
Chorley Borough Council,http://statistics.data.gov.uk/id/local-authority/30UE,Unapportionable Central OHeads,1009,Shared Service Arrangement,Pensions Increase Act Payments,18005,Indirect Employee Expenses,5002,Precept Nov,18/12/2013,92586,"18,763.84",Revenue,Lancashire County Council,18386
Chorley Borough Council,http://statistics.data.gov.uk/id/local-authority/30UE,Democratic Represent and  Mgnt,1007,Health Environment & Neighbourhoods,Rent/Hire Of Premises,20017,Premises Rents,5007,Delivery of Wednesday sessions for children with disabilities,05/12/2013,92339,391.00,Revenue,Lancashire TAAG,57169
Chorley Borough Council,http://statistics.data.gov.uk/id/local-authority/30UE,Precepts and Collection Fund,Precepts,Shared Service Arrangement,LCFA Precept,2011,Precepts & Collection Fund,Precept,precept,18/12/2013,92581,"208,454.00",Revenue,Lancs Combined Fire Authority,17768
Chorley Borough Council,http://statistics.data.gov.uk/id/local-authority/30UE,Collection Fund Revenue Accoun,,Shared Service Arrangement,NNDR Fire Share,2037,Precepts & Collection Fund,Precept,Precept Nov,18/12/2013,92585,"26,027.00",Revenue,Lancs Combined Fire Authority,17768
Chorley Borough Council,http://statistics.data.gov.uk/id/local-authority/30UE,Unapportionable Central OHeads,1009,Governance,Legal Fees,40171,Miscellaneous Expenses,5034,Professional fees Buckshaw Village - The former Royal Ordance Factory Complex Euxton ,06/12/2013,92419,"2,000.00",Revenue,Landmark Chambers,56730
Chorley Borough Council,http://statistics.data.gov.uk/id/local-authority/30UE,Development Control,1091,Governance,Legal Fees,40171,Miscellaneous Expenses,5034,"Fox Strategic Land and Property Ltd v CBC 13.11.2013 - Travelling Expenses... ",18/12/2013,92618,"3,114.75",Revenue,Landmark Chambers,56730
Chorley Borough Council,http://statistics.data.gov.uk/id/local-authority/30UE,Parking Services,1066,Streetscene & Leisure Contracts,External Contractors,50008,Private Contractors,5042,enforcement and cash collection for off street car parks.,11/12/2013,92411,"4,998.02",Revenue,Legion Group,21973
Chorley Borough Council,http://statistics.data.gov.uk/id/local-authority/30UE,Central Support Services,1009,Governance,External Contractors,50008,Private Contractors,5042,Core and Reactive service charge,05/12/2013,92329,"42,320.42",Revenue,Liberata UK,20716
Chorley Borough Council,http://statistics.data.gov.uk/id/local-authority/30UE,Capital,Capital,Governance,Consultants Fees,3025,Capital Expenditure,Capital,Management Fee on capital projects,05/12/2013,92329,"5,209.62",Capital,Liberata UK,20716
Chorley Borough Council,http://statistics.data.gov.uk/id/local-authority/30UE,Central Support Services,1009,Governance,Asset Maintenance Fund,20012,Repairs Maintenance & Alts,5005,Work in progress - Nov 2013,18/12/2013,92725,"12,244.10",Revenue,Liberata UK,20716
Chorley Borough Council,http://statistics.data.gov.uk/id/local-authority/30UE,Unapportionable Central OHeads,1009,Governance,Asset Maintenance Fund,20012,Repairs Maintenance & Alts,5005,Improvement works to 28/11/13,18/12/2013,92726,"7,308.17",Revenue,Liberata UK,20716
Chorley Borough Council,http://statistics.data.gov.uk/id/local-authority/30UE,Central Support Services,1009,Governance,Asset Maintenance Fund,20012,Repairs Maintenance & Alts,5005,Pass through work to 28/11/13,18/12/2013,92727,"4,007.79",Revenue,Liberata UK,20716
Chorley Borough Council,http://statistics.data.gov.uk/id/local-authority/30UE,Development Control,1091,Chief Executives Office,Stationery,40050,"Printing, Stationery & General",5026,Self-Inking Stamp model number 54110 - for Development Control (see example attached),18/12/2013,92670,227.67,Revenue,Lyreco UK Ltd,17623
Chorley Borough Council,http://statistics.data.gov.uk/id/local-authority/30UE,Development Control,1091,Chief Executives Office,Stationery,40050,"Printing, Stationery & General",5026,Self-Inking Stamp Model No 5460 - Received/Date (as per example attached),18/12/2013,92670,62.49,Revenue,Lyreco UK Ltd,17623
Chorley Borough Council,http://statistics.data.gov.uk/id/local-authority/30UE,Elections,1012,Governance,Tools & Equipment - Maintenance,40005,"Equipment, Furniture & Materia",5023,Service electronic letter opener,20/12/2013,91590,306.50,Revenue,Mailopeners,20435
Chorley Borough Council,http://statistics.data.gov.uk/id/local-authority/30UE,Economic Development,1096,Economic Development,Refreshments,40036,Catering,5024,Buffet and packed lunches for Careers and Jobs Fair 21st November 2013,05/12/2013,92393,"1,131.50",Revenue,Marcus Moore,21908
Chorley Borough Council,http://statistics.data.gov.uk/id/local-authority/30UE,Economic Development,1096,Economic Development,Consultants` Fees,40077,Services,5027,Inward Investment Photography Project,11/12/2013,92452,"3,065.00",Revenue,Martin Birchall Photography,22503
Chorley Borough Council,http://statistics.data.gov.uk/id/local-authority/30UE,Corporate Management,1008,HR & Org. Development,Agency Staff,13000,Direct Employee Expenses,5001,Agency Staff,05/12/2013,92287,1.29,Revenue,Matrix SCM Ltd,22128
Chorley Borough Council,http://statistics.data.gov.uk/id/local-authority/30UE,Flood Defence & Land Drainage,1046,HR & Org. Development,Agency Staff,13000,Direct Employee Expenses,5001,Agency Staff,05/12/2013,92287,457.84,Revenue,Matrix SCM Ltd,22128
Chorley Borough Council,http://statistics.data.gov.uk/id/local-authority/30UE,Corporate Management,1008,HR & Org. Development,Agency Staff,13000,Direct Employee Expenses,5001,Agency Staff,05/12/2013,92287,634.92,Revenue,Matrix SCM Ltd,22128
Chorley Borough Council,http://statistics.data.gov.uk/id/local-authority/30UE,Housing Benefit Administration,1077,HR & Org. Development,Agency Staff,13000,Direct Employee Expenses,5001,Agency Staff,11/12/2013,92402,538.24,Revenue,Matrix SCM Ltd,22128
Chorley Borough Council,http://statistics.data.gov.uk/id/local-authority/30UE,Flood Defence & Land Drainage,1046,HR & Org. Development,Agency Staff,13000,Direct Employee Expenses,5001,Agency Staff,11/12/2013,92402,360.36,Revenue,Matrix SCM Ltd,22128
Chorley Borough Council,http://statistics.data.gov.uk/id/local-authority/30UE,Central Support Services,1009,HR & Org. Development,Agency Staff,13000,Direct Employee Expenses,5001,Agency Staff,11/12/2013,92402,154.20,Revenue,Matrix SCM Ltd,22128
Chorley Borough Council,http://statistics.data.gov.uk/id/local-authority/30UE,Flood Defence & Land Drainage,1046,HR & Org. Development,Agency Staff,13000,Direct Employee Expenses,5001,Agency Staff,18/12/2013,92576,257.40,Revenue,Matrix SCM Ltd,22128
Chorley Borough Council,http://statistics.data.gov.uk/id/local-authority/30UE,Housing Benefit Administration,1077,HR & Org. Development,Agency Staff,13000,Direct Employee Expenses,5001,Agency Staff,20/12/2013,92745,566.22,Revenue,Matrix SCM Ltd,22128
Chorley Borough Council,http://statistics.data.gov.uk/id/local-authority/30UE,Flood Defence & Land Drainage,1046,HR & Org. Development,Agency Staff,13000,Direct Employee Expenses,5001,Agency Staff,20/12/2013,92745,626.34,Revenue,Matrix SCM Ltd,22128
Chorley Borough Council,http://statistics.data.gov.uk/id/local-authority/30UE,Unapportionable Central OHeads,1009,"Customer, ICT & Transactional",Computer Equipment-Purchase,40098,Communication and Computing,5028,Mac mini quad-core i7 2.3GHz/4GB/1TB/HD (WW200154),11/12/2013,92551,513.89,Revenue,MISCO,19161
Chorley Borough Council,http://statistics.data.gov.uk/id/local-authority/30UE,Unapportionable Central OHeads,1009,"Customer, ICT & Transactional",Computer Equipment-Purchase,40098,Communication and Computing,5028,Apple iPad Air Wi-Fi 16GB Space Grey (WW216092),11/12/2013,92557,314.97,Revenue,MISCO,19161
Chorley Borough Council,http://statistics.data.gov.uk/id/local-authority/30UE,Central Support Services,1009,"Customer, ICT & Transactional",Computer Equipment-Purchase,40098,Communication and Computing,5028,Apple Wireless Keyboard (WW187963),11/12/2013,92557,43.30,Revenue,MISCO,19161
Chorley Borough Council,http://statistics.data.gov.uk/id/local-authority/30UE,Unapportionable Central OHeads,1009,"Customer, ICT & Transactional",Computer Equipment-Purchase,40098,Communication and Computing,5028,New Apple Wireless Magic Mouse (WW163586),11/12/2013,92557,43.30,Revenue,MISCO,19161
Chorley Borough Council,http://statistics.data.gov.uk/id/local-authority/30UE,Central Support Services,1009,"Customer, ICT & Transactional",Computer Equipment-Purchase,40098,Communication and Computing,5028,APPLE LIGHTNING TO USB CABLE-ZML (WWQ579915),11/12/2013,92557,67.32,Revenue,MISCO,19161
Chorley Borough Council,http://statistics.data.gov.uk/id/local-authority/30UE,Central Support Services,1009,"Customer, ICT & Transactional",Computer Equipment-Purchase,40098,Communication and Computing,5028,Delivery,11/12/2013,92557,9.99,Revenue,MISCO,19161
Chorley Borough Council,http://statistics.data.gov.uk/id/local-authority/30UE,Central Support Services,1009,"Customer, ICT & Transactional",Computer Equipment-Purchase,40098,Communication and Computing,5028,Samsung - I9505 Galaxy S 4 - Black - 16GB (WWQ614534),20/12/2013,92616,810.52,Revenue,MISCO,19161
Chorley Borough Council,http://statistics.data.gov.uk/id/local-authority/30UE,Unapportionable Central OHeads,1009,"Customer, ICT & Transactional",Computer Equipment-Purchase,40098,Communication and Computing,5028,StarTech 6ft DVI-I to DVI-D & VGA Splitter (part number WW197816),20/12/2013,92617,463.00,Revenue,MISCO,19161
Chorley Borough Council,http://statistics.data.gov.uk/id/local-authority/30UE,Central Support Services,1009,"Customer, ICT & Transactional",Computer Equipment-Purchase,40098,Communication and Computing,5028,Delivery,20/12/2013,92617,9.99,Revenue,MISCO,19161
Chorley Borough Council,http://statistics.data.gov.uk/id/local-authority/30UE,Unapportionable Central OHeads,1009,"Customer, ICT & Transactional",Computer Equipment-Purchase,40098,Communication and Computing,5028,IPHONE 5S GREY 16GB,20/12/2013,92651,"1,050.54",Revenue,MISCO,19161
Chorley Borough Council,http://statistics.data.gov.uk/id/local-authority/30UE,Regulatory Services,1048,Health Environment & Neighbourhoods,"Hackney Badges, Plates Etc.",40023,"Equipment, Furniture & Materia",5023,Mogo Private Hire Door Signs,18/12/2013,92681,137.60,Revenue,Mogo UK,17187
Chorley Borough Council,http://statistics.data.gov.uk/id/local-authority/30UE,Corporate Management,1008,Health Environment & Neighbourhoods,"Hackney Badges, Plates Etc.",40023,"Equipment, Furniture & Materia",5023,Mogo Licence Plate sets Printed and Clear Private Hire,18/12/2013,92681,68.80,Revenue,Mogo UK,17187
Chorley Borough Council,http://statistics.data.gov.uk/id/local-authority/30UE,Regulatory Services,1048,Health Environment & Neighbourhoods,"Hackney Badges, Plates Etc.",40023,"Equipment, Furniture & Materia",5023,Mogo Licence plate sets (Printed and Clear) Hackney Carriage Vehicle,18/12/2013,92681,34.40,Revenue,Mogo UK,17187
Chorley Borough Council,http://statistics.data.gov.uk/id/local-authority/30UE,Corporate Management,1008,Health Environment & Neighbourhoods,"Hackney Badges, Plates Etc.",40023,"Equipment, Furniture & Materia",5023,Windscreen Pouches for Internal Private Hire and Hackney Carriage Plates,18/12/2013,92681,29.60,Revenue,Mogo UK,17187
Chorley Borough Council,http://statistics.data.gov.uk/id/local-authority/30UE,Regulatory Services,1048,Health Environment & Neighbourhoods,"Hackney Badges, Plates Etc.",40023,"Equipment, Furniture & Materia",5023,Postage,18/12/2013,92681,14.90,Revenue,Mogo UK,17187
Chorley Borough Council,http://statistics.data.gov.uk/id/local-authority/30UE,Capital,Capital,Housing,Grants,3002,Capital Expenditure,Capital,Capital Works - Disabled Facility grant,06/12/2013,92298,"10,000.00",Capital,NAME REDACTED,62533
Chorley Borough Council,http://statistics.data.gov.uk/id/local-authority/30UE,Economic Development,1096,Economic Development,Grants To Other Organisations,40127,Grants and Subscriptions,5031,Shop front improvement grant,06/12/2013,92291,"2,464.50",Revenue,Supanews,62642
Chorley Borough Council,http://statistics.data.gov.uk/id/local-authority/30UE,Service Management & Support,1009,Streetscene & Leisure Contracts,External Contractor,40198,Miscellaneous Expenses,5034,Works completed in Market Street ( planters ),18/12/2013,92317,240.00,Revenue,Mr Stephen Scambler,16710
Chorley Borough Council,http://statistics.data.gov.uk/id/local-authority/30UE,Service Management & Support,1009,Streetscene & Leisure Contracts,External Contractor,40198,Miscellaneous Expenses,5034,Works completed in Market Street ( planters ),18/12/2013,92317,160.00,Revenue,Mr Stephen Scambler,16710
Chorley Borough Council,http://statistics.data.gov.uk/id/local-authority/30UE,Economic Development,1096,Economic Development,Grants To Other Organisations,40127,Grants and Subscriptions,5031,Shop floor refurbishment grant,06/12/2013,92297,"1,719.88",Revenue,Tamarisk Beauty Shoppe,62736
Chorley Borough Council,http://statistics.data.gov.uk/id/local-authority/30UE,Corporate Management,1008,Health Environment & Neighbourhoods,Miscellaneous Expenses,40200,Miscellaneous Expenses,5034,Vaccinations and worming for a further three months.,11/12/2013,92519,277.90,Revenue,Myerscough Veterinary Group,56978
Chorley Borough Council,http://statistics.data.gov.uk/id/local-authority/30UE,Unapportionable Central OHeads,1009,HR & Org. Development,Legal Fees,40171,Miscellaneous Expenses,5034,Compromise Agreement,18/12/2013,92562,350.00,Revenue,Napthens Solicitors,20427
Chorley Borough Council,http://statistics.data.gov.uk/id/local-authority/30UE,Corporate Management,1008,Shared Service Arrangement,Bank Charges,40151,Miscellaneous Expenses,5034,Transaction Charges,18/12/2013,92538,539.50,Revenue,Natwest Streamline,16690
Chorley Borough Council,http://statistics.data.gov.uk/id/local-authority/30UE,Corporate Management,1008,Shared Service Arrangement,Bank Charges,40151,Miscellaneous Expenses,5034,Transaction Charges,18/12/2013,92539,683.95,Revenue,Natwest Streamline,16690
Chorley Borough Council,http://statistics.data.gov.uk/id/local-authority/30UE,Corporate Management,1008,Shared Service Arrangement,Bank Charges,40151,Miscellaneous Expenses,5034,Transaction Charges,18/12/2013,92540,732.07,Revenue,Natwest Streamline,16690
Chorley Borough Council,http://statistics.data.gov.uk/id/local-authority/30UE,Service Management & Support,1009,Shared Service Arrangement,Vehicle Maintenance,30045,Direct Transport Costs,5016,83520032,18/12/2013,92590,441.06,Revenue,Natwest Streamline,16690
Chorley Borough Council,http://statistics.data.gov.uk/id/local-authority/30UE,Service Management & Support,1009,Shared Service Arrangement,Vehicle Maintenance,30045,Direct Transport Costs,5016,83520292,18/12/2013,92591,11.79,Revenue,Natwest Streamline,16690
Chorley Borough Council,http://statistics.data.gov.uk/id/local-authority/30UE,Service Management & Support,1009,Shared Service Arrangement,Vehicle Maintenance,30045,Direct Transport Costs,5016,83520292,18/12/2013,92591,687.73,Revenue,Natwest Streamline,16690
Chorley Borough Council,http://statistics.data.gov.uk/id/local-authority/30UE,Corporate Management,1008,Shared Service Arrangement,Bank Charges,40151,Miscellaneous Expenses,5034,83602842,18/12/2013,92592,716.73,Revenue,Natwest Streamline,16690
Chorley Borough Council,http://statistics.data.gov.uk/id/local-authority/30UE,Corporate Management,1008,Shared Service Arrangement,Bank Charges,40151,Miscellaneous Expenses,5034,trans,18/12/2013,92744,510.60,Revenue,Natwest Streamline,16690
Chorley Borough Council,http://statistics.data.gov.uk/id/local-authority/30UE,Corporate Management,1008,Shared Service Arrangement,Bank Charges,40151,Miscellaneous Expenses,5034,trans,18/12/2013,92746,11.79,Revenue,Natwest Streamline,16690
Chorley Borough Council,http://statistics.data.gov.uk/id/local-authority/30UE,Corporate Management,1008,Shared Service Arrangement,Bank Charges,40151,Miscellaneous Expenses,5034,trans,18/12/2013,92746,454.81,Revenue,Natwest Streamline,16690
Chorley Borough Council,http://statistics.data.gov.uk/id/local-authority/30UE,Corporate Management,1008,Shared Service Arrangement,Bank Charges,40151,Miscellaneous Expenses,5034,trans,18/12/2013,92747,353.77,Revenue,Natwest Streamline,16690
Chorley Borough Council,http://statistics.data.gov.uk/id/local-authority/30UE,Community Development,1097,Health Environment & Neighbourhoods,Refuse Collection,20037,Cleaning and Domestic Supplies,5012,supply skip for community clean up Friday 1st November 2013 ADDRESS REDACTED,18/12/2013,92621,413.62,Revenue,Neales Waste Management,17583
Chorley Borough Council,http://statistics.data.gov.uk/id/local-authority/30UE,Service Management & Support,1009,Streetscene & Leisure Contracts,Refuse Collection,20037,Cleaning and Domestic Supplies,5012,Exchange of Street Cleaning skip from Chorley Council Bengal St depot ,23/12/2013,92622,"1,500.00",Revenue,Neales Waste Management,17583
Chorley Borough Council,http://statistics.data.gov.uk/id/local-authority/30UE,Service Management & Support,1009,Streetscene & Leisure Contracts,Refuse Collection,20037,Cleaning and Domestic Supplies,5012,Exchange of green waste skip from Bengal St depot ,23/12/2013,92622,83.11,Revenue,Neales Waste Management,17583
Chorley Borough Council,http://statistics.data.gov.uk/id/local-authority/30UE,Service Management & Support,1009,Streetscene & Leisure Contracts,Refuse Collection,20037,Cleaning and Domestic Supplies,5012,Charge for tonnage of green waste removed from Bengal St depot ,23/12/2013,92622,749.02,Revenue,Neales Waste Management,17583
Chorley Borough Council,http://statistics.data.gov.uk/id/local-authority/30UE,Homelessness,1075,Housing,External Contractor,40198,Miscellaneous Expenses,5034,Homeless service charge,20/12/2013,92509,"3,591.00",Revenue,New Progress Housing Association Ltd,17922
Chorley Borough Council,http://statistics.data.gov.uk/id/local-authority/30UE,Service Management & Support,1009,Streetscene & Leisure Contracts,Supplies-Grounds Maintenance,40025,"Equipment, Furniture & Materia",5023,North West in Bloom donation,11/12/2013,92301,250.00,Revenue,North West in Bloom,18540
Chorley Borough Council,http://statistics.data.gov.uk/id/local-authority/30UE,Central Support Services,1009,Governance,Laundry,40042,"Clothing, Uniforms and Laundry",5025,Tea towels,11/12/2013,92137,380.50,Revenue,North West Ironing & Laundry Centre,20450
Chorley Borough Council,http://statistics.data.gov.uk/id/local-authority/30UE,Housing Benefit Administration,1077,"Customer, ICT & Transactional",Service Fees,40056,Services,5027,Mailroom services,06/12/2013,92334,"3,325.00",Revenue,Northgate Information Solutions UK Limited,18285
Chorley Borough Council,http://statistics.data.gov.uk/id/local-authority/30UE,Local Tax Collection,1010,"Customer, ICT & Transactional",Service Fees,40056,Services,5027,"Monthly postage, shredding and manual cheque logging",06/12/2013,92386,280.00,Revenue,Northgate Information Solutions UK Limited,18285
Chorley Borough Council,http://statistics.data.gov.uk/id/local-authority/30UE,Local Tax Collection,1010,"Customer, ICT & Transactional",Service Fees,40056,Services,5027,Mailroom services,06/12/2013,92387,"3,325.00",Revenue,Northgate Information Solutions UK Limited,18285
Chorley Borough Council,http://statistics.data.gov.uk/id/local-authority/30UE,Housing Benefit Administration,1077,"Customer, ICT & Transactional",Service Fees,40056,Services,5027,"Monthly postage, shredding and manual cheque logging",06/12/2013,92390,"1,565.33",Revenue,Northgate Information Solutions UK Limited,18285
Chorley Borough Council,http://statistics.data.gov.uk/id/local-authority/30UE,Local Tax Collection,1010,"Customer, ICT & Transactional",Service Fees,40056,Services,5027,Mailroom Services,06/12/2013,92391,"3,325.00",Revenue,Northgate Information Solutions UK Limited,18285
Chorley Borough Council,http://statistics.data.gov.uk/id/local-authority/30UE,Central Support Services,1009,"Customer, ICT & Transactional",Miscellaneous Expenses,40200,Miscellaneous Expenses,5034,Scanning,20/12/2013,92430,"1,796.48",Revenue,Northgate Information Solutions UK Limited,18285
Chorley Borough Council,http://statistics.data.gov.uk/id/local-authority/30UE,Service Management & Support,1009,Streetscene & Leisure Contracts,Hire Of Transport,30028,Contrct Hire & Operating Lease,5018,Hire of Ford Transit tipper Reg NJ10OTK at price quoted from 01/04/2013  - 31/03/2014,23/12/2013,92529,394.29,Revenue,Northgate Vehicle Hire (NW) Ltd,17360
Chorley Borough Council,http://statistics.data.gov.uk/id/local-authority/30UE,Service Management & Support,1009,Streetscene & Leisure Contracts,Hire Of Transport,30028,Contrct Hire & Operating Lease,5018,Hire of Ford Transit tipper NJ10OVN at price quoted from 01/04/2013 - 31/03/2014,23/12/2013,92529,394.29,Revenue,Northgate Vehicle Hire (NW) Ltd,17360
Chorley Borough Council,http://statistics.data.gov.uk/id/local-authority/30UE,Service Management & Support,1009,Streetscene & Leisure Contracts,Hire Of Transport,30028,Contrct Hire & Operating Lease,5018,Hire of Ford Transit tipper Reg NJ10OXG at price quoted from 01/03/2013  - 31/04/2014,23/12/2013,92529,394.29,Revenue,Northgate Vehicle Hire (NW) Ltd,17360
Chorley Borough Council,http://statistics.data.gov.uk/id/local-authority/30UE,Service Management & Support,1009,Streetscene & Leisure Contracts,Hire Of Transport,30028,Contrct Hire & Operating Lease,5018,Hire of Ford Transit tipper Reg NJ60 KFK at price quoted,23/12/2013,92529,400.46,Revenue,Northgate Vehicle Hire (NW) Ltd,17360
Chorley Borough Council,http://statistics.data.gov.uk/id/local-authority/30UE,Service Management & Support,1009,Streetscene & Leisure Contracts,Hire Of Transport,30028,Contrct Hire & Operating Lease,5018,Hire of Ford Transit Crewcab tipper Reg NL12 OFG at price quoted,23/12/2013,92529,505.71,Revenue,Northgate Vehicle Hire (NW) Ltd,17360
Chorley Borough Council,http://statistics.data.gov.uk/id/local-authority/30UE,Service Management & Support,1009,Streetscene & Leisure Contracts,Hire Of Transport,30028,Contrct Hire & Operating Lease,5018,Hire of Ford Transit tipper Reg No NL12ONR at price quoted,23/12/2013,92529,505.71,Revenue,Northgate Vehicle Hire (NW) Ltd,17360
Chorley Borough Council,http://statistics.data.gov.uk/id/local-authority/30UE,Community Safety Crime Reduct,1043,Streetscene & Leisure Contracts,Hire Of Transport,30028,Contrct Hire & Operating Lease,5018,Hire ot Peugeot Panter van Reg NV60 BVF at price quoted,23/12/2013,92529,233.61,Revenue,Northgate Vehicle Hire (NW) Ltd,17360
Chorley Borough Council,http://statistics.data.gov.uk/id/local-authority/30UE,Corporate Management,1008,Streetscene & Leisure Contracts,Hire Of Transport,30028,Contrct Hire & Operating Lease,5018,Hire of PeugeotPartner van Reg NX62 UCS at price quoted,23/12/2013,92529,233.61,Revenue,Northgate Vehicle Hire (NW) Ltd,17360
Chorley Borough Council,http://statistics.data.gov.uk/id/local-authority/30UE,Democratic Represent and  Mgnt,1007,Streetscene & Leisure Contracts,Hire Of Transport,30028,Contrct Hire & Operating Lease,5018,Hire of Ford Transit crew cab Reg NK13YPT at price quoted,23/12/2013,92529,492.86,Revenue,Northgate Vehicle Hire (NW) Ltd,17360
Chorley Borough Council,http://statistics.data.gov.uk/id/local-authority/30UE,Service Management & Support,1009,Streetscene & Leisure Contracts,Hire Of Transport,30028,Contrct Hire & Operating Lease,5018,Hire Of NA12 VST,23/12/2013,92529,118.29,Revenue,Northgate Vehicle Hire (NW) Ltd,17360
Chorley Borough Council,http://statistics.data.gov.uk/id/local-authority/30UE,Democratic Represent and  Mgnt,1007,Streetscene & Leisure Contracts,Hire Of Transport,30028,Contrct Hire & Operating Lease,5018,Hire of NL11 OKG,23/12/2013,92529,21.29,Revenue,Northgate Vehicle Hire (NW) Ltd,17360
Chorley Borough Council,http://statistics.data.gov.uk/id/local-authority/30UE,Parking Services,1066,Governance,Electricity,20013,Energy Costs,5006,Un-metered Car Park Lighting,18/12/2013,92688,875.38,Revenue,Npower Commercial Gas,16814
Chorley Borough Council,http://statistics.data.gov.uk/id/local-authority/30UE,Parking Services,1066,Governance,Electricity,20013,Energy Costs,5006,Un-metered Pay & Display Machines,18/12/2013,92688,95.33,Revenue,Npower Commercial Gas,16814
Chorley Borough Council,http://statistics.data.gov.uk/id/local-authority/30UE,Culture & Heritage,1036,Governance,Electricity,20013,Energy Costs,5006,Un-metered CCTV Cameras,18/12/2013,92688,234.98,Revenue,Npower Commercial Gas,16814
Chorley Borough Council,http://statistics.data.gov.uk/id/local-authority/30UE,Service Management & Support,1009,Streetscene & Leisure Contracts,Supplies - Workshop,40246,"Equipment, Furniture & Materia",5023,Supply items as on invoice No 146350,18/12/2013,92660,669.95,Revenue,Nuts Engineering Supplies Ltd,16632
Chorley Borough Council,http://statistics.data.gov.uk/id/local-authority/30UE,Central Support Services,1009,HR & Org. Development,Corp Training Organisational Development,17006,Indirect Employee Expenses,5002,NLP Taster Session 30/04/13 (Invoice 8571),11/12/2013,92432,720.00,Revenue,Nwlaeo,17571
Chorley Borough Council,http://statistics.data.gov.uk/id/local-authority/30UE,Local Tax Collection,1010,"Customer, ICT & Transactional",Stationery,40050,"Printing, Stationery & General",5026,"90 gsm white opaquegummed flapswindow 45x90mm",05/12/2013,92020,276.60,Revenue,Opal Envelopes Ltd,19356
Chorley Borough Council,http://statistics.data.gov.uk/id/local-authority/30UE,Capital,Capital,Governance,Purchase Money,3027,Capital Expenditure,Capital,Purchase price for Market Walk Shopping Centre,05/12/2013,92268,"22,250,000.00",Capital,Orchard St Investment Nominee 1 Ltd &  Nominee 2,62639
Chorley Borough Council,http://statistics.data.gov.uk/id/local-authority/30UE,Capital,Capital,Governance,Other Expenses,3030,Capital Expenditure,Capital,Adjustment to Occupational Lease Rents,05/12/2013,92288,"3,898.54",Capital,Orchard St Investment Nominee 1 Ltd &  Nominee 2,62639
Chorley Borough Council,http://statistics.data.gov.uk/id/local-authority/30UE,Democratic Represent and  Mgnt,1007,Streetscene & Leisure Contracts,Playground Equipment,40008,"Equipment, Furniture & Materia",5023,"Tatton Play Area: Retension Aerial runway, supply & fix aerial runway trolley, chain & seat Redwing Play Area ",18/12/2013,92416,995.00,Revenue,Parkdale Play & Leisure Ltd,61009
Chorley Borough Council,http://statistics.data.gov.uk/id/local-authority/30UE,Democratic Represent and  Mgnt,1007,Streetscene & Leisure Contracts,Playground Equipment,40008,"Equipment, Furniture & Materia",5023,Wetpour repair,18/12/2013,92418,450.00,Revenue,Parkdale Play & Leisure Ltd,61009
Chorley Borough Council,http://statistics.data.gov.uk/id/local-authority/30UE,Community Safety Crime Reduct,1043,Health Environment & Neighbourhoods,External Contractor,40198,Miscellaneous Expenses,5034,50 weeks @ 330.00 for 2013/14,06/12/2013,92433,311.75,Revenue,Peter L Johnson,16727
Chorley Borough Council,http://statistics.data.gov.uk/id/local-authority/30UE,Community Safety Crime Reduct,1043,Health Environment & Neighbourhoods,External Contractor,40198,Miscellaneous Expenses,5034,50 weeks @ 330.00 for 2013/14,18/12/2013,92644,311.75,Revenue,Peter L Johnson,16727
Chorley Borough Council,http://statistics.data.gov.uk/id/local-authority/30UE,Economic Development,1096,Economic Development,Grants To Other Organisations,40127,Grants and Subscriptions,5031,Starting in business grant,11/12/2013,92471,500.00,Revenue,NAME REDACTED,62388
Chorley Borough Council,http://statistics.data.gov.uk/id/local-authority/30UE,Economic Development,1096,Planning,Grants To Other Organisations,40127,Grants and Subscriptions,5031,Landscape Design Services for The Big Lamp Chorley,18/12/2013,92609,"2,325.00",Revenue,Planit IE Limited,62532
Chorley Borough Council,http://statistics.data.gov.uk/id/local-authority/30UE,Service Management & Support,1009,Streetscene & Leisure Contracts,Supplies-Grounds Maintenance,40025,"Equipment, Furniture & Materia",5023,"20 Orchids 20 Ponsettias20 Ivy4 Ferns50 Cyclamins",18/12/2013,92555,424.55,Revenue,Pole Green Nurseries,20641
Chorley Borough Council,http://statistics.data.gov.uk/id/local-authority/30UE,Precepts and Collection Fund,Precepts,Shared Service Arrangement,LPA Precept,2010,Precepts & Collection Fund,Precept,precept,18/12/2013,92580,"506,815.00",Revenue,Police & Crime Commissioner,17438
Chorley Borough Council,http://statistics.data.gov.uk/id/local-authority/30UE,Economic Development,1096,Economic Development,Miscellaneous Expenses,40200,Miscellaneous Expenses,5034,"No Entry Sign: A1 x 1 (aluminium composite), installed to NEW planter 175.78 1 Unit(s) No Entry Sign: A1 x 1... ",05/12/2013,92325,598.27,Revenue,Poppy Signs Ltd,21898
Chorley Borough Council,http://statistics.data.gov.uk/id/local-authority/30UE,Surplus or Deficit on Trading,1019,Policy & Performance,Signs:Provision & Maintenance,20065,Grounds Maintenance Costs,5013,New signage for Market Walk,11/12/2013,92510,"12,070.77",Revenue,Poppy Signs Ltd,21898
Chorley Borough Council,http://statistics.data.gov.uk/id/local-authority/30UE,Central Support Services,1009,HR & Org. Development,Corp Training Organisational Development,17006,Indirect Employee Expenses,5002,4 x Streetscene Workshops,05/12/2013,92330,"3,960.00",Revenue,Potential Unearthed,22243
Chorley Borough Council,http://statistics.data.gov.uk/id/local-authority/30UE,Unapportionable Central OHeads,1009,HR & Org. Development,Corp Training Organisational Development,17006,Indirect Employee Expenses,5002,Dealing with Change Workshop,05/12/2013,92331,495.00,Revenue,Potential Unearthed,22243
Chorley Borough Council,http://statistics.data.gov.uk/id/local-authority/30UE,Housing Advice,1071,Streetscene & Leisure Contracts,External Contractor,40198,Miscellaneous Expenses,5034,Materials (for draught proofing etc) for Warm Homes scheme,18/12/2013,92515,"1,000.00",Revenue,Preston Care and Repair,50018
Chorley Borough Council,http://statistics.data.gov.uk/id/local-authority/30UE,Homelessness,1075,Housing,External Contractor,40198,Miscellaneous Expenses,5034,"Concierge service at Cotswold Supported Housing, Cotswold Road, Chorley",20/12/2013,92524,"4,386.93",Revenue,Profile Security Ltd,58000
Chorley Borough Council,http://statistics.data.gov.uk/id/local-authority/30UE,Democratic Represent and  Mgnt,1007,Streetscene & Leisure Contracts,Exhibitions,40176,Miscellaneous Expenses,5034,Inscription work carried out on Astley Park War Memorial. ,06/12/2013,92462,360.00,Revenue,Rawcliffes Of Chorley Ltd,17993
Chorley Borough Council,http://statistics.data.gov.uk/id/local-authority/30UE,Economic Development,1096,Economic Development,Grants To Other Organisations,40127,Grants and Subscriptions,5031,Starting in business grant,20/12/2013,92717,500.00,Revenue,NAME REDACTED,62964
Chorley Borough Council,http://statistics.data.gov.uk/id/local-authority/30UE,Homelessness,1075,Housing,Grants To Other Organisations,40127,Grants and Subscriptions,5031,Personalised solution budget to support NSNO,20/12/2013,92456,"1,000.00",Revenue,Ribble Valley Borough Council,21100
Chorley Borough Council,http://statistics.data.gov.uk/id/local-authority/30UE,Unapportionable Central OHeads,1009,"Customer, ICT & Transactional",Computer Software-Maintenance,40107,Communication and Computing,5028,"Adobe Reader Extension Server ALL ALP Platinum Maintenance & Support Renewal (AES: 58044443F2-CHBO",20/12/2013,92683,"6,560.00",Revenue,ROCC Computers Ltd,20307
Chorley Borough Council,http://statistics.data.gov.uk/id/local-authority/30UE,Homelessness,1075,Housing,Grants To Other Organisations,40127,Grants and Subscriptions,5031,Personalised solution budget to support NSNO,20/12/2013,92664,"1,000.00",Revenue,Rossendale Borough Council,49343
Chorley Borough Council,http://statistics.data.gov.uk/id/local-authority/30UE,Elections,1012,Governance,Postages,40082,Communication and Computing,5028,Business reply mail from April 2013 - March 2014 licence number RRHA-KZCB-CAXA,20/12/2013,92623,"1,057.44",Revenue,Royal Mail Group Plc,17522
Chorley Borough Council,http://statistics.data.gov.uk/id/local-authority/30UE,Central Support Services,1009,"Customer, ICT & Transactional",Consultants` Fees,40077,Services,5027,Scanning of Cemetery plans and digitisation of grave plots with associated attribution (approximately 21000 plots),20/12/2013,92642,"3,990.00",Revenue,Salford Gis Ltd,16684
Chorley Borough Council,http://statistics.data.gov.uk/id/local-authority/30UE,Central Support Services,1009,"Customer, ICT & Transactional",Consultants` Fees,40077,Services,5027,"Plotting of future grave plots within new cemetery sections (if over 1 day`s work), based on estimate of 800 plots at 0.19 ..",20/12/2013,92642,57.57,Revenue,Salford Gis Ltd,16684
Chorley Borough Council,http://statistics.data.gov.uk/id/local-authority/30UE,Unapportionable Central OHeads,1009,"Customer, ICT & Transactional",Consultants` Fees,40077,Services,5027,ICT consultancy work - November (21 working days) To be paid on a daily basis June 13 to November 13 at 24 per hour,11/12/2013,92303,"3,208.74",Revenue,Simon Daniel Booth,57624
Chorley Borough Council,http://statistics.data.gov.uk/id/local-authority/30UE,Service Management & Support,1009,Streetscene & Leisure Contracts,Protective Clothing,40040,"Clothing, Uniforms and Laundry",5025,Polo Shirts,18/12/2013,92224,"1,677.50",Revenue,Smart Image Workwear,21064
Chorley Borough Council,http://statistics.data.gov.uk/id/local-authority/30UE,Corporate Management,1008,Streetscene & Leisure Contracts,Refreshments,40036,Catering,5024,Buffet Lunch x 20 for Training Event at Astley Coach House,18/12/2013,92435,463.33,Revenue,Southcott Catering Ltd,21842
Chorley Borough Council,http://statistics.data.gov.uk/id/local-authority/30UE,Unapportionable Central OHeads,1009,Streetscene & Leisure Contracts,Fixtures & Fittings - Repair/Mtnce,20028,Fixtures and Fittings,5010,Carryout lighting works at Bengal St depot workshop as requested,23/12/2013,92653,"2,159.80",Revenue,Speakman Contractors Ltd,54838
Chorley Borough Council,http://statistics.data.gov.uk/id/local-authority/30UE,Service Management & Support,1009,Streetscene & Leisure Contracts,Vehicle Maintenance,30045,Direct Transport Costs,5016,Supply second hand turbo and carryout repairs to 4 wheel steering on AJ03JZD as requested,23/12/2013,92634,414.00,Revenue,Stoat Sweepers and Gritters,22421
Chorley Borough Council,http://statistics.data.gov.uk/id/local-authority/30UE,Corporate Management,1008,Streetscene & Leisure Contracts,Addn'L Services Payment,50010,Private Contractors,5042,Kerbside Box + Ergo Handle. 55 litre. Green.,05/12/2013,92130,"2,761.50",Revenue,Straight Plc,17633
Chorley Borough Council,http://statistics.data.gov.uk/id/local-authority/30UE,Waste Collection,1050,Streetscene & Leisure Contracts,Addn'L Services Payment,50010,Private Contractors,5042,Logo for 55 litre  ergo box. PRINTKBX CHOR01004 - existing - white - one long side,05/12/2013,92130,157.50,Revenue,Straight Plc,17633
Chorley Borough Council,http://statistics.data.gov.uk/id/local-authority/30UE,Capital,Capital,Housing,Grants,3002,Capital Expenditure,Capital,Capital Works - Disabled Facility Grant,06/12/2013,92406,"6,190.00",Capital,Stringfellow Bldg Cntrctrs Ltd,17893
Chorley Borough Council,http://statistics.data.gov.uk/id/local-authority/30UE,Capital,Capital,Housing,Grants,3002,Capital Expenditure,Capital,Capital Works - Disabled Facility Grant,11/12/2013,92470,"9,337.50",Capital,Stringfellow Bldg Cntrctrs Ltd,17893
Chorley Borough Council,http://statistics.data.gov.uk/id/local-authority/30UE,Capital,Capital,Housing,Grants,3002,Capital Expenditure,Capital,Capital Works - Disabled Facilty Grant,20/12/2013,92713,"3,250.00",Capital,Stringfellow Bldg Cntrctrs Ltd,17893
Chorley Borough Council,http://statistics.data.gov.uk/id/local-authority/30UE,Parking Services,1066,Streetscene & Leisure Contracts,Car Park Lamps,20064,Grounds Maintenance Costs,5013,4000039 Replacement glazing for 231 Globe fitting in ``Cracked Ice`` acrylic.,13/12/2013,91893,"11,600.00",Revenue,Sugg Lighting Limited,17417
Chorley Borough Council,http://statistics.data.gov.uk/id/local-authority/30UE,Parking Services,1066,Streetscene & Leisure Contracts,Car Park Lamps,20064,Grounds Maintenance Costs,5013,Packaging and carriage for Sugg 231 Globe light fittings,13/12/2013,91893,160.00,Revenue,Sugg Lighting Limited,17417
Chorley Borough Council,http://statistics.data.gov.uk/id/local-authority/30UE,Corporate Management,1008,Health Environment & Neighbourhoods,General Subscriptions,40146,Grants and Subscriptions,5031,Renewal of subscription to Encyclopedia of Environmental Health Law & Practice. Account number 0070416403,20/12/2013,92422,870.00,Revenue,Sweet & Maxwell Limited,17932
Chorley Borough Council,http://statistics.data.gov.uk/id/local-authority/30UE,Development Control,1091,Planning,Publications,40054,"Printing, Stationery & General",5026,Encyclopedia of Planning Law & Practice 9Volumes - Annual subscription 4 releases  REF: 350014070,13/12/2013,92449,"1,909.99",Revenue,Sweet & Maxwell Limited,17932
Chorley Borough Council,http://statistics.data.gov.uk/id/local-authority/30UE,Development Control,1091,Planning,Publications,40054,"Printing, Stationery & General",5026,"Journal of Planning and Environmental Law Issues and Binder - Annual subscription 12 issues, index and binder",13/12/2013,92449,45.01,Revenue,Sweet & Maxwell Limited,17932
Chorley Borough Council,http://statistics.data.gov.uk/id/local-authority/30UE,Development Control,1091,Planning,Publications,40054,"Printing, Stationery & General",5026,Planning Law,20/12/2013,92666,"1,909.99",Revenue,Sweet & Maxwell Limited,17932
Chorley Borough Council,http://statistics.data.gov.uk/id/local-authority/30UE,Development Control,1091,Planning,Publications,40054,"Printing, Stationery & General",5026,Planning Law,20/12/2013,92666,45.01,Revenue,Sweet & Maxwell Limited,17932
Chorley Borough Council,http://statistics.data.gov.uk/id/local-authority/30UE,Central Support Services,1009,Policy & Performance,Exhibitions & Special Events,40158,Miscellaneous Expenses,5034,Chorley Live`s Christmas Crackers and PA equipment,05/12/2013,92328,250.00,Revenue,The Creative Network,61874
Chorley Borough Council,http://statistics.data.gov.uk/id/local-authority/30UE,Economic Development,1096,Economic Development,Grants To Other Organisations,40127,Grants and Subscriptions,5031,Starting in business grant,11/12/2013,92409,750.00,Revenue,The Gymnasium,62738
Chorley Borough Council,http://statistics.data.gov.uk/id/local-authority/30UE,Central Support Services,1009,Chief Executives Office,Postages,40082,Communication and Computing,5028,Mail Collection for all Departments,05/12/2013,92081,"1,176.47",Revenue,TNT Post North Ltd,21187
Chorley Borough Council,http://statistics.data.gov.uk/id/local-authority/30UE,Unapportionable Central OHeads,1009,Chief Executives Office,Postages,40082,Communication and Computing,5028,Mail Collection for all Departments,06/12/2013,92323,"1,675.45",Revenue,TNT Post North Ltd,21187
Chorley Borough Council,http://statistics.data.gov.uk/id/local-authority/30UE,Unapportionable Central OHeads,1009,Chief Executives Office,Postages,40082,Communication and Computing,5028,Mail Collection for all Departments,06/12/2013,92374,981.37,Revenue,TNT Post North Ltd,21187
Chorley Borough Council,http://statistics.data.gov.uk/id/local-authority/30UE,Unapportionable Central OHeads,1009,Chief Executives Office,Postages,40082,Communication and Computing,5028,Mail Collection for all Departments,06/12/2013,92414,"1,462.95",Revenue,TNT Post North Ltd,21187
Chorley Borough Council,http://statistics.data.gov.uk/id/local-authority/30UE,Central Support Services,1009,Chief Executives Office,Postages,40082,Communication and Computing,5028,Mail Collection for all Departments,20/12/2013,92624,"1,531.76",Revenue,TNT Post North Ltd,21187
Chorley Borough Council,http://statistics.data.gov.uk/id/local-authority/30UE,Unapportionable Central OHeads,1009,Chief Executives Office,Postages,40082,Communication and Computing,5028,Mail Collection for all Departments,23/12/2013,92761,"1,200.77",Revenue,TNT Post North Ltd,21187
Chorley Borough Council,http://statistics.data.gov.uk/id/local-authority/30UE,Service Management & Support,1009,Streetscene & Leisure Contracts,Grounds Maintenance Contractor,20043,Grounds Maintenance Costs,5013,Work completed at Yarrow Valley,11/12/2013,92342,"4,830.00",Revenue,Treescape North West Ltd,17688
Chorley Borough Council,http://statistics.data.gov.uk/id/local-authority/30UE,Capital,Capital,Governance,Other Capital Related Fees,3024,Capital Expenditure,Capital,Professional services for preparation of report for the acquisition of Market walk Shopping Centre,20/12/2013,92758,"5,000.00",Capital,Tushingham Moore LLP,63077
Chorley Borough Council,http://statistics.data.gov.uk/id/local-authority/30UE,Service Management & Support,1009,Streetscene & Leisure Contracts,Petrol,30005,Direct Transport Costs,5016,Petrol,11/12/2013,92338,199.79,Revenue,Uk Fuels Ltd,57996
Chorley Borough Council,http://statistics.data.gov.uk/id/local-authority/30UE,Service Management & Support,1009,Streetscene & Leisure Contracts,Petrol,30005,Direct Transport Costs,5016,Petrol,11/12/2013,92338,54.03,Revenue,Uk Fuels Ltd,57996
Chorley Borough Council,http://statistics.data.gov.uk/id/local-authority/30UE,Service Management & Support,1009,Streetscene & Leisure Contracts,Petrol,30005,Direct Transport Costs,5016,Petrol,11/12/2013,92338,17.43,Revenue,Uk Fuels Ltd,57996
Chorley Borough Council,http://statistics.data.gov.uk/id/local-authority/30UE,Democratic Represent and  Mgnt,1007,Streetscene & Leisure Contracts,Use Of Transport - Mayoral Car,30015,Transport Recharges,5017,Petrol,11/12/2013,92338,60.33,Revenue,Uk Fuels Ltd,57996
Chorley Borough Council,http://statistics.data.gov.uk/id/local-authority/30UE,Service Management & Support,1009,Streetscene & Leisure Contracts,Petrol,30005,Direct Transport Costs,5016,Petrol,11/12/2013,92338,24.34,Revenue,Uk Fuels Ltd,57996
Chorley Borough Council,http://statistics.data.gov.uk/id/local-authority/30UE,Control Accounts,Control,Shared Service Arrangement,General Balances,100,Balance Sheet,Balance,Credit Unio Subs,18/12/2013,92587,"1,238.00",Revenue,Unify Credit Union Ltd,55509
Chorley Borough Council,http://statistics.data.gov.uk/id/local-authority/30UE,Homelessness,1075,Housing,Water - Metered Supplies,20022,Water Services,5009,Cotswold House,06/12/2013,92424,805.54,Revenue,United Utilities Water Plc,17926
Chorley Borough Council,http://statistics.data.gov.uk/id/local-authority/30UE,Democratic Represent and  Mgnt,1007,Streetscene & Leisure Contracts,Water - Metered Supplies,20022,Water Services,5009,AstleyHall,18/12/2013,92559,947.55,Revenue,United Utilities Water Plc,17926
Chorley Borough Council,http://statistics.data.gov.uk/id/local-authority/30UE,Democratic Represent and  Mgnt,1007,Streetscene & Leisure Contracts,Water - Metered Supplies,20022,Water Services,5009,Astley Coach House,18/12/2013,92563,425.31,Revenue,United Utilities Water Plc,17926
Chorley Borough Council,http://statistics.data.gov.uk/id/local-authority/30UE,Economic Development,1096,Economic Development,Water - Metered Supplies,20022,Water Services,5009,Market Stall,20/12/2013,92605,451.28,Revenue,United Utilities Water Plc,17926
Chorley Borough Council,http://statistics.data.gov.uk/id/local-authority/30UE,Unapportionable Central OHeads,1009,Governance,Window Cleaning,20034,Cleaning and Domestic Supplies,5012,Water,18/12/2013,92647,907.24,Revenue,United Utilities Water Plc,17926
Chorley Borough Council,http://statistics.data.gov.uk/id/local-authority/30UE,Central Support Services,1009,Governance,Water - Unmetered Supply,20023,Water Services,5009,Wastewater,18/12/2013,92647,624.34,Revenue,United Utilities Water Plc,17926
Chorley Borough Council,http://statistics.data.gov.uk/id/local-authority/30UE,Central Support Services,1009,Planning,Consultants` Fees,40077,Services,5027,Technical Support: 9 days support October 2013 @ 175 per day,05/12/2013,92235,"1,575.00",Revenue,Urban Vision Partnership Ltd,21181
Chorley Borough Council,http://statistics.data.gov.uk/id/local-authority/30UE,Business Support,1095,Governance,Fire Extinguishers,20074,Fixtures and Fittings,5010,"1 Certification Fee @ 15.00. 18 x Fixed price service of extinguishers 3.50. Including supply and installation.",06/12/2013,92394,359.60,Revenue,Walker Fire (UK) Ltd,17092
Chorley Borough Council,http://statistics.data.gov.uk/id/local-authority/30UE,Central Support Services,1009,"Customer, ICT & Transactional",Computer Software-Maintenance,40107,Communication and Computing,5028,"Annual maintenance renewal effective 01/04/13 Year 2 maintenance due 01/04/14 at 800 Year 3 maintenance ",05/12/2013,89804,800.00,Revenue,Waterford Technologies,18023
Chorley Borough Council,http://statistics.data.gov.uk/id/local-authority/30UE,Unapportionable Central OHeads,1009,"Customer, ICT & Transactional",Computer Software-Purchase,40100,Communication and Computing,5028,Upgrade to existing software and additional software as agreed Solution to provide all functionality available within MailMeter,05/12/2013,89804,"2,000.00",Revenue,Waterford Technologies,18023
Chorley Borough Council,http://statistics.data.gov.uk/id/local-authority/30UE,Service Management & Support,1009,Streetscene & Leisure Contracts,Diesel/Derv,30007,Direct Transport Costs,5016,Supply 8000 litres of road diesel to be delivered to Bengal St depot at price quoted via the chest,05/12/2013,92305,"8,874.40",Revenue,Watsons Fuels,22184
Chorley Borough Council,http://statistics.data.gov.uk/id/local-authority/30UE,Service Management & Support,1009,Streetscene & Leisure Contracts,Diesel/Derv,30007,Direct Transport Costs,5016,Supply 4000 liters of red diesel to be delivered to Bengal St depot at your price quoted via the chest,05/12/2013,92306,"2,509.65",Revenue,Watsons Fuels,22184
Chorley Borough Council,http://statistics.data.gov.uk/id/local-authority/30UE,Culture & Heritage,1036,Streetscene & Leisure Contracts,Consultants` Fees,40077,Services,5027,Curatorial Consultancy fees for November 2013 (including VAT),11/12/2013,92483,583.30,Revenue,Whittle and Draper Fine Art,52271
Chorley Borough Council,http://statistics.data.gov.uk/id/local-authority/30UE,Corporate Management,1008,Streetscene & Leisure Contracts,Vehicle Maintenance,30045,Direct Transport Costs,5016,"Complete servicing, MOT, repairs as required to pass MOT inspection.  Vauxhall Astra MW53 UZJ",11/12/2013,92382,366.37,Revenue,Wrekamendid Services Ltd,21188
Chorley Borough Council,http://statistics.data.gov.uk/id/local-authority/30UE,Community Safety Crime Reduct,1043,Streetscene & Leisure Contracts,Vehicle Maintenance,30045,Direct Transport Costs,5016,"Complete servicing, MOT, repairs as required to pass MOT inspection.  Vauxhall Astra MW53 UZJ",11/12/2013,92382,30.00,Revenue,Wrekamendid Services Ltd,21188
Chorley Borough Council,http://statistics.data.gov.uk/id/local-authority/30UE,Corporate Management,1008,Streetscene & Leisure Contracts,Vehicle Maintenance,30045,Direct Transport Costs,5016,Carryout full service pre MOT inspection and carryout repairs on MJ56OZF as required,06/12/2013,92446,458.24,Revenue,Wrekamendid Services Ltd,21188
Chorley Borough Council,http://statistics.data.gov.uk/id/local-authority/30UE,Community Safety Crime Reduct,1043,Streetscene & Leisure Contracts,Vehicle Maintenance,30045,Direct Transport Costs,5016,MOT,06/12/2013,92446,30.00,Revenue,Wrekamendid Services Ltd,21188
Chorley Borough Council,http://statistics.data.gov.uk/id/local-authority/30UE,Community Safety Crime Reduct,1043,Streetscene & Leisure Contracts,Vehicle Maintenance,30045,Direct Transport Costs,5016,Carryout pre MOT inspection and repairs on MJ56OZK as required,06/12/2013,92447,424.95,Revenue,Wrekamendid Services Ltd,21188
Chorley Borough Council,http://statistics.data.gov.uk/id/local-authority/30UE,Corporate Management,1008,Streetscene & Leisure Contracts,Vehicle Maintenance,30045,Direct Transport Costs,5016,MOT,06/12/2013,92447,30.00,Revenue,Wrekamendid Services Ltd,21188
Chorley Borough Council,http://statistics.data.gov.uk/id/local-authority/30UE,Community Safety Crime Reduct,1043,Streetscene & Leisure Contracts,Vehicle Maintenance,30045,Direct Transport Costs,5016,Carryout pre MOT inspection and repairs on MJ56GKO as required,06/12/2013,92448,375.35,Revenue,Wrekamendid Services Ltd,21188
Chorley Borough Council,http://statistics.data.gov.uk/id/local-authority/30UE,Corporate Management,1008,Streetscene & Leisure Contracts,Vehicle Maintenance,30045,Direct Transport Costs,5016,MOT,06/12/2013,92448,30.00,Revenue,Wrekamendid Services Ltd,21188
Chorley Borough Council,http://statistics.data.gov.uk/id/local-authority/30UE,Corporate Management,1008,Streetscene & Leisure Contracts,Provn Of Street Furniture,20057,Grounds Maintenance Costs,5013,Supply litter bins as per Chorley specification discussed ,23/12/2013,92318,"5,699.70",Revenue,Wybone Ltd,18097
Chorley Borough Council,http://statistics.data.gov.uk/id/local-authority/30UE,Corporate Management,1008,Streetscene & Leisure Contracts,Provn Of Street Furniture,20057,Grounds Maintenance Costs,5013,Supply litter as per Quotation number 29815 supplied,05/12/2013,92319,"6,749.75",Revenue,Wybone Ltd,18097
Chorley Borough Council,http://statistics.data.gov.uk/id/local-authority/30UE,Corporate Management,1008,Streetscene & Leisure Contracts,Provn Of Street Furniture,20057,Grounds Maintenance Costs,5013,Supply litter bins as per Chorley specification discussed ,23/12/2013,92428,"7,599.60",Revenue,Wybone Ltd,18097
Chorley Borough Council,http://statistics.data.gov.uk/id/local-authority/30UE,Homelessness,1075,Housing,Grants To Other Organisations,40127,Grants and Subscriptions,5031,Personalised solution budget for No socond night out initiative as part single homelessness project,20/12/2013,92572,"1,000.00",Revenue,Wyre Borough Council,16751
